Workbook

Sheet cover
B2: EFFETTO FIONDA
B3: Autore: Hume
B5: Giove si muove di moto rettilineo uniforme lungo l'asse x. La sua massa è tale che il suo moto non è influenzato dalla sonda
B6: La sonda in avvicinamento al pianeta viene deviata dalla forza gravitazionale esercitata dal pianeta e pertanto ruota attorno al pianeta
B7: A causa dell'effetto fionda la sonda riceve energia meccanica dal pianeta ed in tal modo aumenta la sua velocità, quantità di moto, energia cinetica.
C10: SOLE
J12: y
I23: GIOVE | L23: v10
N25: x
K26: m1
G27: v20
H29: forza gravitazionale
E30: SONDA
E31: m2
B36: Si assume un sistema di riferimento cartesiano x,y solidale con il Sole
B37: Tutte le velocità sono misurate rispetto al Sole
B38: All'istante t=0 il pianeta è nel punto (0,0) e si muove a velocità costante lungo la sua traiettoria ellittica (tangente all'asse x) attorno al Sole
B39: La sonda si trova nella sfera di influenza di Giove dal quale è attratta, mentre si assume trascurabile l'influenza gravuitazionale del Sole su di essa.

Sheet DATI E RISULTATI
A1: EFFETTO FIONDA: SONDA VS GIOVE | L1: 1 = PIANETA 2 = SONDA
K2: =K4/24 -> 4.166666667 | AA2: Bilanci meccanici sonda
A3: x10 (m) | B3: y10 (m) | C3: x20 (m) | D3: y20 (m) | E3: vx10 (m/s) | F3: vy10 (m/s) | G3: vx20 (m/s) | H3: vy20 (m/s) | I3: massa Giove (kg) | J3: massa sonda (kg) | K3: tempo (h) | L3: NSTEP | N3: d0 | O3: ALFA(°) | S3: Moto relativo della sonda rispetto a Giove per t=0 | AA3: iniziale | AB3: finale | AD3: delta%
A4: 0 | B4: 0 | C4: -300000000 | D4: =-800000000 -> -800000000 | E4: 13056 | F4: 0 | G4: 3000 | H4: 14000 | I4: 1.89e+27 | J4: 7000 | K4: 100 | L4: 1000 | N4: =SQRT((C4-A4)^2+(D4-B4)^2) -> 854400374.5 | O4: =ACOS((C4-A4)/N4)/PI()*180 -> 110.5560452 | Z4: velocità | AA4: =AA19 -> 14317.82106 | AB4: =AA1019 -> 21193.09098 | AC4: m/s | AD4: =AB4/AA4-1 -> 0.4801896802
S5: v02xr | T5: =I19-G19 -> -10056 | U5: m/s | Z5: quantità di moto x | AA5: =$J$4*I19 -> 21000000 | AB5: =$J$4*I1019 -> 145573782.1 | AC5: kg*m/s
M6: d0 da centro Giove | N6: =N4/1000 -> 854400.3745 | O6: km | S6: v02yr | T6: =J19 -> 14000 | U6: m/s | Z6: quantità di moto x | AA6: =$J$4*J19 -> 98000000 | AB6: =$J$4*J1019 -> 28574151.33 | AC6: kg*m/s
M7: d0 da sup Giove | N7: =(N4-D12)/1000 -> 780400.3745 | O7: km | S7: vo2r | T7: =SQRT(T5^2+T6^2) -> 17237.26011 | U7: m/s | Z7: quantità di moto totale | AA7: =SQRT(AA5^2+AA6^2) -> 100224747.4 | AB7: =SQRT(AB5^2+AB6^2) -> 148351636.9 | AC7: kg*m/s | AD7: =AB7/AA7-1 -> 0.4801896802
S8: Ec | T8: =0.5*+J4*T7^2 -> 1.039930976e+12
F9: v02 | G9: =SQRT(G4^2+H4^2) -> 14317.82106 | H9: m/s | S9: Ep | T9: =AC19 -> -1.033481808e+12 | Z9: energia cinetica | AA9: =0.5*$J$4*AA19^2 -> 717500000000 | AB9: =0.5*$J$4*AA1019^2 -> 1.572014869e+12 | AC9: J | AD9: =AB9/AA9-1 -> 1.190961489
F10: durata | G10: =K4*3600 -> 360000 | H10: s | S10: E | T10: =T8+T9 -> 6449167797
F11: step | G11: =G10/L4 -> 360 | H11: s | K11: =MIN(K19:K1019)/1000 -> 591745.4813 | L11: dmin ( km) | AA11: =MIN(AA19:AA1019)/1000 -> 14.31782106
B12: raggio Giove | D12: =148000000/2 -> 74000000 | E12: m | F12: distanza minima | G12: =(K11-D12/1000) -> 517745.4813 | H12: km da sup. Giove | K12: =MAX(K19:K1019)/1000 -> 3375908.37 | L12: dmax (km) | AA12: =MAX(AA19:AA1019)/1000 -> 26.66401055
A14: MOTO GRAVITAZIONALE DUE CORPI NEL PIANO
B17: (s) | C17: (m) | D17: (m) | E17: (m) | F17: (m) | G17: (m/s) | H17: (m/s) | I17: (m/s) | J17: (m/s) | K17: (m) | Q17: TRAIETTORIE SONDA E PIANETA | T17: TRAIETTORIA SONDA MOTO RELATIVO A GIOVE | W17: QUANTITA' DI MOTO SONDA | Z17: MODULI VELOCITA' | AB17: ENERGIA CINETICA | AC17: ENERGIA POTENZIALE | AD17: ENERGIA TOTALE | AF17: ENERGIA CINETICA SONDA | AG17: ENERGIA POTENZIALE SONDA | AH17: ENERGIA TOTALE SONDA
A18: step | B18: t | C18: x1 | D18: y1 | E18: x2 | F18: y2 | G18: vx1 | H18: vy1 | I18: vx2 | J18: vy2 | K18: distanza | Q18: x1 | R18: y1 | S18: y2 | T18: x2r | U18: y2r | W18: qx | X18: qy | Y18: q | Z18: v1 | AA18: v2 | AB18: Ec | AC18: Ep | AD18: Et | AF18: Ec2 | AG18: Ep2 | AH18: Et2
A19: 1 | B19: 0 | C19: 0 | D19: 0 | E19: -300000000 | F19: -800000000 | G19: 13056 | H19: 0 | I19: 3000 | J19: 14000 | K19: 854400374.5 | Q19: =C19 -> 0 | R19: 0 | W19: =$I$4*G19+$J$4*I19 -> 2.467584e+31 | X19: =$I$4*H19+$J$4*J19 -> 98000000 | Y19: =SQRT(W19^2+X19^2) -> 2.467584e+31 | Z19: =SQRT(G19^2+H19^2) -> 13056 | AA19: =SQRT(I19^2+J19^2) -> 14317.82106 | AB19: =($I$4*Z19^2+$J$4*AA19^2)/2 -> 1.610838835e+35 | AC19: =-0.0000000000667428*$I$4*$J$4/K19 -> -1.033481808e+12 | AD19: =AB19+AC19 -> 1.610838835e+35 | AF19: =0.5*$J$4*AA19^2 -> 717500000000 | AG19: =AC19 -> -1.033481808e+12 | AH19: =AF19+AG19 -> -3.159818082e+11
A20: 2 | B20: 360 | C20: 4700160 | D20: 0 | E20: -298916036.5 | F20: -794949495.2 | G20: 13056 | H20: 0 | I20: 3022.108252 | J20: 14058.41608 | K20: 850956811.3 | Q20: 4700160 | R20: 0 | W20: =$I$4*G20+$J$4*I20 -> 2.467584e+31 | X20: =$I$4*H20+$J$4*J20 -> 98408912.58 | Y20: =SQRT(W20^2+X20^2) -> 2.467584e+31 | Z20: =SQRT(G20^2+H20^2) -> 13056 | AA20: =SQRT(I20^2+J20^2) -> 14379.57583 | AB20: =($I$4*Z20^2+$J$4*AA20^2)/2 -> 1.610838835e+35 | AC20: =-0.0000000000667428*$I$4*$J$4/K20 -> -1.037663995e+12 | AD20: =AB20+AC20 -> 1.610838835e+35 | AF20: =0.5*$J$4*AA20^2 -> 7.237027037e+11 | AG20: =AC20 -> -1.037663995e+12 | AH20: =AF20+AG20 -> -3.139612908e+11
A21: 3 | B21: 720 | C21: 9400320 | D21: 0 | E21: -297824017.6 | F21: -789877899.9 | G21: 13056 | H21: 0 | I21: 3044.754011 | J21: 14117.16948 | K21: 847522206.4 | Q21: 9400320 | R21: 0 | W21: 2.467584e+31 | X21: 98820186.37 | Y21: 2.467584e+31 | Z21: 13056 | AA21: 14441.77971 | AB21: 1.610838835e+35 | AC21: -1.041869154e+12 | AD21: 1.610838835e+35 | AF21: 7.299775041e+11 | AG21: -1.041869154e+12 | AH21: -3.118916496e+11
A22: 4 | B22: 1080 | C22: 14100480 | D22: 0 | E22: -296723748 | F22: -784785092.9 | G22: 13056 | H22: 0 | I22: 3067.946883 | J22: 14176.25915 | K22: 844096761.4 | Q22: 14100480 | R22: 0 | W22: 2.467584e+31 | X22: 99233814.08 | Y22: 2.467584e+31 | Z22: 13056 | AA22: 14504.43455 | AB22: 1.610838835e+35 | AC22: -1.046097183e+12 | AD22: 1.610838835e+35 | AF22: 7.36325176e+11 | AG22: -1.046097183e+12 | AH22: -3.097720067e+11
A23: 5 | B23: 1440 | C23: 18800640 | D23: 0 | E23: -295615029 | F23: -779670953.1 | G23: 13056 | H23: 0 | I23: 3091.69661 | J23: 14235.68391 | K23: 840680681.4 | Q23: 18800640 | R23: 0 | W23: 2.467584e+31 | X23: 99649787.34 | Y23: 2.467584e+31 | Z23: 13056 | AA23: 14567.54215 | AB23: 1.610838835e+35 | AC23: -1.050347966e+12 | AD23: 1.610838835e+35 | AF23: 7.427464947e+11 | AG23: -1.050347966e+12 | AH23: -3.076014716e+11
A24: 6 | B24: 1800 | C24: 23500800 | D24: 0 | E24: -294497658.4 | F24: -774535360.4 | G24: 13056 | H24: 0 | I24: 3116.013067 | J24: 14295.44238 | K24: 837274175 | Q24: 23500800 | R24: 0 | W24: 2.467584e+31 | X24: 100068096.7 | Y24: 2.467584e+31 | Z24: 13056 | AA24: 14631.1042 | AB24: 1.610838835e+35 | AC24: -1.054621378e+12 | AD24: 1.610838835e+35 | AF24: 7.492422358e+11 | AG24: -1.054621378e+12 | AH24: -3.05379142e+11
A25: 7 | B25: 2160 | C25: 28200960 | D25: 0 | E25: -293371430.4 | F25: -769378194.8 | G25: 13056 | H25: 0 | I25: 3140.906261 | J25: 14355.53305 | K25: 833877454.3 | Q25: 28200960 | R25: 0 | W25: 2.467584e+31 | X25: 100488731.4 | Y25: 2.467584e+31 | Z25: 13056 | AA25: 14695.12237 | AB25: 1.610838835e+35 | AC25: -1.058917278e+12 | AD25: 1.610838835e+35 | AF25: 7.558131747e+11 | AG25: -1.058917278e+12 | AH25: -3.031041032e+11
A26: 8 | B26: 2520 | C26: 32901120 | D26: 0 | E26: -292236135.5 | F26: -764199336.9 | G26: 13056 | H26: 0 | I26: 3166.386333 | J26: 14415.95423 | K26: 830490735.3 | Q26: 32901120 | R26: 0 | W26: 2.467584e+31 | X26: 100911679.6 | Y26: 2.467584e+31 | Z26: 13056 | AA26: 14759.59819 | AB26: 1.610838835e+35 | AC26: -1.063235514e+12 | AD26: 1.610838835e+35 | AF26: 7.624600857e+11 | AG26: -1.063235514e+12 | AH26: -3.007754284e+11
A27: 9 | B27: 2880 | C27: 37601280 | D27: 0 | E27: -291091560.5 | F27: -758998668.3 | G27: 13056 | H27: 0 | I27: 3192.463554 | J27: 14476.70404 | K27: 827114237.5 | Q27: 37601280 | R27: 0 | W27: 2.467584e+31 | X27: 101336928.3 | Y27: 2.467584e+31 | Z27: 13056 | AA27: 14824.53316 | AB27: 1.610838835e+35 | AC27: -1.067575921e+12 | AD27: 1.610838835e+35 | AF27: 7.691837421e+11 | AG27: -1.067575921e+12 | AH27: -2.98392179e+11
A28: 10 | B28: 3240 | C28: 42301440 | D28: 0 | E28: -289937488.8 | F28: -753776070.8 | G28: 13056 | H28: 0 | I28: 3219.148327 | J28: 14537.78043 | K28: 823748184.1 | Q28: 42301440 | R28: 0 | W28: 2.467584e+31 | X28: 101764463 | Y28: 2.467584e+31 | Z28: 13056 | AA28: 14889.92867 | AB28: 1.610838835e+35 | AC28: -1.071938319e+12 | AD28: 1.610838835e+35 | AF28: 7.75984915e+11 | AG28: -1.071938319e+12 | AH28: -2.959534043e+11
A29: 11 | B29: 3600 | C29: 47001600 | D29: 0 | E29: -288773699.6 | F29: -748531427.5 | G29: 13056 | H29: 0 | I29: 3246.451182 | J29: 14599.18114 | K29: 820392802.1 | Q29: 47001600 | R29: 0 | W29: 2.467584e+31 | X29: 102194268 | Y29: 2.467584e+31 | Z29: 13056 | AA29: 14955.78601 | AB29: 1.610838835e+35 | AC29: -1.076322515e+12 | AD29: 1.610838835e+35 | AF29: 7.828643732e+11 | AG29: -1.076322515e+12 | AH29: -2.934581418e+11
A30: 12 | B30: 3960 | C30: 51701760 | D30: 0 | E30: -287599968.5 | F30: -743264621.8 | G30: 13056 | H30: 0 | I30: 3274.382779 | J30: 14660.90373 | K30: 817048322.3 | Q30: 51701760 | R30: 0 | W30: 2.467584e+31 | X30: 102626326.1 | Y30: 2.467584e+31 | Z30: 13056 | AA30: 15022.1064 | AB30: 1.610838835e+35 | AC30: -1.0807283e+12 | AD30: 1.610838835e+35 | AF30: 7.898228823e+11 | AG30: -1.0807283e+12 | AH30: -2.909054173e+11
A31: 13 | B31: 4320 | C31: 56401920 | D31: 0 | E31: -286416067.2 | F31: -737975538.5 | G31: 13056 | H31: 0 | I31: 3302.953903 | J31: 14722.94554 | K31: 813714979.4 | Q31: 56401920 | R31: 0 | W31: 2.467584e+31 | X31: 103060618.7 | Y31: 2.467584e+31 | Z31: 13056 | AA31: 15088.89094 | AB31: 1.610838835e+35 | AC31: -1.085155449e+12 | AD31: 1.610838835e+35 | AF31: 7.968612041e+11 | AG31: -1.085155449e+12 | AH31: -2.882942451e+11
A32: 14 | B32: 4680 | C32: 61102080 | D32: 0 | E32: -285221763.6 | F32: -732664063 | G32: 13056 | H32: 0 | I32: 3332.175464 | J32: 14785.3037 | K32: 810393012 | Q32: 61102080 | R32: 0 | W32: 2.467584e+31 | X32: 103497125.9 | Y32: 2.467584e+31 | Z32: 13056 | AA32: 15156.14063 | AB32: 1.610838835e+35 | AC32: -1.089603724e+12 | AD32: 1.610838835e+35 | AF32: 8.03980096e+11 | AG32: -1.089603724e+12 | AH32: -2.856236282e+11
A33: 15 | B33: 5040 | C33: 65802240 | D33: 0 | E33: -284016821.5 | F33: -727330082.2 | G33: 13056 | H33: 0 | I33: 3362.058495 | J33: 14847.97514 | K33: 807082662.6 | Q33: 65802240 | R33: 0 | W33: 2.467584e+31 | X33: 103935826 | Y33: 2.467584e+31 | Z33: 13056 | AA33: 15223.85638 | AB33: 1.610838835e+35 | AC33: -1.094072869e+12 | AD33: 1.610838835e+35 | AF33: 8.111803105e+11 | AG33: -1.094072869e+12 | AH33: -2.828925582e+11
A34: 16 | B34: 5400 | C34: 70502400 | D34: 0 | E34: -282801000.8 | F34: -721973483.8 | G34: 13056 | H34: 0 | I34: 3392.614147 | J34: 14910.95653 | K34: 803784177.7 | Q34: 70502400 | R34: 0 | W34: 2.467584e+31 | X34: 104376695.7 | Y34: 2.467584e+31 | Z34: 13056 | AA34: 15292.03895 | AB34: 1.610838835e+35 | AC34: -1.09856261e+12 | AD34: 1.610838835e+35 | AF34: 8.184625938e+11 | AG34: -1.09856261e+12 | AH34: -2.80100016e+11
A35: 17 | B35: 5760 | C35: 75202560 | D35: 0 | E35: -281574057.3 | F35: -716594156.7 | G35: 13056 | H35: 0 | I35: 3423.853692 | J35: 14974.24433 | K35: 800497807.7 | Q35: 75202560 | R35: 0 | W35: 2.467584e+31 | X35: 104819710.3 | Y35: 2.467584e+31 | Z35: 13056 | AA35: 15360.68903 | AB35: 1.610838835e+35 | AC35: -1.103072657e+12 | AD35: 1.610838835e+35 | AF35: 8.258276858e+11 | AG35: -1.103072657e+12 | AH35: -2.772449716e+11
A36: 18 | B36: 6120 | C36: 79902720 | D36: 0 | E36: -280335742.7 | F36: -711191991.5 | G36: 13056 | H36: 0 | I36: 3455.788512 | J36: 15037.83475 | K36: 797223807.2 | Q36: 79902720 | R36: 0 | W36: 2.467584e+31 | X36: 105264843.3 | Y36: 2.467584e+31 | Z36: 13056 | AA36: 15429.80713 | AB36: 1.610838835e+35 | AC36: -1.107602703e+12 | AD36: 1.610838835e+35 | AF36: 8.332763188e+11 | AG36: -1.107602703e+12 | AH36: -2.743263845e+11
A37: 19 | B37: 6480 | C37: 84602880 | D37: 0 | E37: -279085804.7 | F37: -705766879.9 | G37: 13056 | H37: 0 | I37: 3488.430105 | J37: 15101.72375 | K37: 793962435 | Q37: 84602880 | R37: 0 | W37: 2.467584e+31 | X37: 105712066.2 | Y37: 2.467584e+31 | Z37: 13056 | AA37: 15499.39369 | AB37: 1.610838835e+35 | AC37: -1.112152421e+12 | AD37: 1.610838835e+35 | AF37: 8.408092167e+11 | AG37: -1.112152421e+12 | AH37: -2.71343204e+11
A38: 20 | B38: 6840 | C38: 89303040 | D38: 0 | E38: -277823986.8 | F38: -700318715.1 | G38: 13056 | H38: 0 | I38: 3521.790075 | J38: 15165.90703 | K38: 790713953.7 | Q38: 89303040 | R38: 0 | W38: 2.467584e+31 | X38: 106161349.2 | Y38: 2.467584e+31 | Z38: 13056 | AA38: 15569.44897 | AB38: 1.610838835e+35 | AC38: -1.116721464e+12 | AD38: 1.610838835e+35 | AF38: 8.484270943e+11 | AG38: -1.116721464e+12 | AH38: -2.682943697e+11
A39: 21 | B39: 7200 | C39: 94003200 | D39: 0 | E39: -276550028.3 | F39: -694847392.1 | G39: 13056 | H39: 0 | I39: 3555.88013 | J39: 15230.38002 | K39: 787478630.3 | Q39: 94003200 | R39: 0 | W39: 2.467584e+31 | X39: 106612660.1 | Y39: 2.467584e+31 | Z39: 13056 | AA39: 15639.97311 | AB39: 1.610838835e+35 | AC39: -1.121309468e+12 | AD39: 1.610838835e+35 | AF39: 8.561306565e+11 | AG39: -1.121309468e+12 | AH39: -2.651788114e+11
A40: 22 | B40: 7560 | C40: 98703360 | D40: 0 | E40: -275263664.1 | F40: -689352807.3 | G40: 13056 | H40: 0 | I40: 3590.712079 | J40: 15295.13789 | K40: 784256736.1 | Q40: 98703360 | R40: 0 | W40: 2.467584e+31 | X40: 107065965.2 | Y40: 2.467584e+31 | Z40: 13056 | AA40: 15710.96612 | AB40: 1.610838835e+35 | AC40: -1.125916047e+12 | AD40: 1.610838835e+35 | AF40: 8.63920597e+11 | AG40: -1.125916047e+12 | AH40: -2.619954499e+11
A41: 23 | B41: 7920 | C41: 103403520 | D41: 0 | E41: -273964625.1 | F41: -683834859.2 | G41: 13056 | H41: 0 | I41: 3626.297829 | J41: 15360.17552 | K41: 781048546.3 | Q41: 103403520 | R41: 0 | W41: 2.467584e+31 | X41: 107521228.6 | Y41: 2.467584e+31 | Z41: 13056 | AA41: 15782.42782 | AB41: 1.610838835e+35 | AC41: -1.130540794e+12 | AD41: 1.610838835e+35 | AF41: 8.717975974e+11 | AG41: -1.130540794e+12 | AH41: -2.587431971e+11
A42: 24 | B42: 8280 | C42: 108103680 | D42: 0 | E42: -272652637.8 | F42: -678293448 | G42: 13056 | H42: 0 | I42: 3662.649375 | J42: 15425.48749 | K42: 777854340.6 | Q42: 108103680 | R42: 0 | W42: 2.467584e+31 | X42: 107978412.4 | Y42: 2.467584e+31 | Z42: 13056 | AA42: 15854.35791 | AB42: 1.610838835e+35 | AC42: -1.135183283e+12 | AD42: 1.610838835e+35 | AF42: 8.797623264e+11 | AG42: -1.135183283e+12 | AH42: -2.554209566e+11
A43: 25 | B43: 8640 | C43: 112803840 | D43: 0 | E43: -271327424.2 | F43: -672728476 | G43: 13056 | H43: 0 | I43: 3699.7788 | J43: 15491.06809 | K43: 774674402.9 | Q43: 112803840 | R43: 0 | W43: 2.467584e+31 | X43: 108437476.7 | Y43: 2.467584e+31 | Z43: 13056 | AA43: 15926.75591 | AB43: 1.610838835e+35 | AC43: -1.139843063e+12 | AD43: 1.610838835e+35 | AF43: 8.878154386e+11 | AG43: -1.139843063e+12 | AH43: -2.520276241e+11
A44: 26 | B44: 9000 | C44: 117504000 | D44: 0 | E44: -269988702.2 | F44: -667139847.5 | G44: 13056 | H44: 0 | I44: 3737.698269 | J44: 15556.91132 | K44: 771509021.6 | Q44: 117504000 | R44: 0 | W44: 2.467584e+31 | X44: 108898379.2 | Y44: 2.467584e+31 | Z44: 13056 | AA44: 15999.62119 | AB44: 1.610838835e+35 | AC44: -1.144519661e+12 | AD44: 1.610838835e+35 | AF44: 8.959575732e+11 | AG44: -1.144519661e+12 | AH44: -2.48562088e+11
A45: 27 | B45: 9360 | C45: 122204160 | D45: 0 | E45: -268636185.2 | F45: -661527469.1 | G45: 13056 | H45: 0 | I45: 3776.42002 | J45: 15623.01082 | K45: 768358489.1 | Q45: 122204160 | R45: 0 | W45: 2.467584e+31 | X45: 109361075.7 | Y45: 2.467584e+31 | Z45: 13056 | AA45: 16072.95291 | AB45: 1.610838835e+35 | AC45: -1.149212583e+12 | AD45: 1.610838835e+35 | AF45: 9.041893534e+11 | AG45: -1.149212583e+12 | AH45: -2.450232297e+11
A46: 28 | B46: 9720 | C46: 126904320 | D46: 0 | E46: -267269582.1 | F46: -655891249.7 | G46: 13056 | H46: 0 | I46: 3815.956361 | J46: 15689.35994 | K46: 765223102.5 | Q46: 126904320 | R46: 0 | W46: 2.467584e+31 | X46: 109825519.6 | Y46: 2.467584e+31 | Z46: 13056 | AA46: 16146.75009 | AB46: 1.610838835e+35 | AC46: -1.153921309e+12 | AD46: 1.610838835e+35 | AF46: 9.125113845e+11 | AG46: -1.153921309e+12 | AH46: -2.414099244e+11
A47: 29 | B47: 10080 | C47: 131604480 | D47: 0 | E47: -265888597.4 | F47: -650231100.8 | G47: 13056 | H47: 0 | I47: 3856.319663 | J47: 15755.9517 | K47: 762103163 | Q47: 131604480 | R47: 0 | W47: 2.467584e+31 | X47: 110291661.9 | Y47: 2.467584e+31 | Z47: 13056 | AA47: 16221.01154 | AB47: 1.610838835e+35 | AC47: -1.158645295e+12 | AD47: 1.610838835e+35 | AF47: 9.209242533e+11 | AG47: -1.158645295e+12 | AH47: -2.377210416e+11
A48: 30 | B48: 10440 | C48: 136304640 | D48: 0 | E48: -264492931.2 | F48: -644546936.3 | G48: 13056 | H48: 0 | I48: 3897.522349 | J48: 15822.77874 | K48: 758998976.4 | Q48: 136304640 | R48: 0 | W48: 2.467584e+31 | X48: 110759451.2 | Y48: 2.467584e+31 | Z48: 13056 | AA48: 16295.73587 | AB48: 1.610838835e+35 | AC48: -1.163383972e+12 | AD48: 1.610838835e+35 | AF48: 9.294285265e+11 | AG48: -1.163383972e+12 | AH48: -2.339554457e+11
A49: 31 | B49: 10800 | C49: 141004800 | D49: 0 | E49: -263082279.1 | F49: -638838672.8 | G49: 13056 | H49: 0 | I49: 3939.576893 | J49: 15889.83339 | K49: 755910852.8 | Q49: 141004800 | R49: 0 | W49: 2.467584e+31 | X49: 111228833.7 | Y49: 2.467584e+31 | Z49: 13056 | AA49: 16370.92152 | AB49: 1.610838835e+35 | AC49: -1.168136746e+12 | AD49: 1.610838835e+35 | AF49: 9.380247494e+11 | AG49: -1.168136746e+12 | AH49: -2.301119968e+11
A50: 32 | B50: 11160 | C50: 145704960 | D50: 0 | E50: -261656332.1 | F50: -633106229.9 | G50: 13056 | H50: 0 | I50: 3982.495807 | J50: 15957.1076 | K50: 752839106.7 | Q50: 145704960 | R50: 0 | W50: 2.467584e+31 | X50: 111699753.2 | Y50: 2.467584e+31 | Z50: 13056 | AA50: 16446.56668 | AB50: 1.610838835e+35 | AC50: -1.172902996e+12 | AD50: 1.610838835e+35 | AF50: 9.467134449e+11 | AG50: -1.172902996e+12 | AH50: -2.261895514e+11
A51: 33 | B51: 11520 | C51: 150405120 | D51: 0 | E51: -260214776.9 | F51: -627349530 | G51: 13056 | H51: 0 | I51: 4026.291634 | J51: 16024.59294 | K51: 749784057.2 | Q51: 150405120 | R51: 0 | W51: 2.467584e+31 | X51: 112172150.6 | Y51: 2.467584e+31 | Z51: 13056 | AA51: 16522.66937 | AB51: 1.610838835e+35 | AC51: -1.177682075e+12 | AD51: 1.610838835e+35 | AF51: 9.554951114e+11 | AG51: -1.177682075e+12 | AH51: -2.221869632e+11
A52: 34 | B52: 11880 | C52: 155105280 | D52: 0 | E52: -258757295.4 | F52: -621568498.7 | G52: 13056 | H52: 0 | I52: 4070.976941 | J52: 16092.28063 | K52: 746746027.7 | Q52: 155105280 | R52: 0 | W52: 2.467584e+31 | X52: 112645964.4 | Y52: 2.467584e+31 | Z52: 13056 | AA52: 16599.22737 | AB52: 1.610838835e+35 | AC52: -1.182473306e+12 | AD52: 1.610838835e+35 | AF52: 9.643702223e+11 | AG52: -1.182473306e+12 | AH52: -2.181030836e+11
A53: 35 | B53: 12240 | C53: 159805440 | D53: 0 | E53: -257283565.2 | F53: -615763064.7 | G53: 13056 | H53: 0 | I53: 4116.564305 | J53: 16160.16149 | K53: 743725345.9 | Q53: 159805440 | R53: 0 | W53: 2.467584e+31 | X53: 113121130.4 | Y53: 2.467584e+31 | Z53: 13056 | AA53: 16676.23822 | AB53: 1.610838835e+35 | AC53: -1.187275987e+12 | AD53: 1.610838835e+35 | AF53: 9.733392236e+11 | AG53: -1.187275987e+12 | AH53: -2.139367632e+11
A54: 36 | B54: 12600 | C54: 164505600 | D54: 0 | E54: -255793259.3 | F54: -609933160.4 | G54: 13056 | H54: 0 | I54: 4163.066309 | J54: 16228.22593 | K54: 740722344.2 | Q54: 164505600 | R54: 0 | W54: 2.467584e+31 | X54: 113597581.5 | Y54: 2.467584e+31 | Z54: 13056 | AA54: 16753.69923 | AB54: 1.610838835e+35 | AC54: -1.192089385e+12 | AD54: 1.610838835e+35 | AF54: 9.824025332e+11 | AG54: -1.192089385e+12 | AH54: -2.096868521e+11
A55: 37 | B55: 12960 | C55: 169205760 | D55: 0 | E55: -254286046.2 | F55: -604078721.2 | G55: 13056 | H55: 0 | I55: 4210.495526 | J55: 16296.46399 | K55: 737737359.3 | Q55: 169205760 | R55: 0 | W55: 2.467584e+31 | X55: 114075247.9 | Y55: 2.467584e+31 | Z55: 13056 | AA55: 16831.6075 | AB55: 1.610838835e+35 | AC55: -1.19691274e+12 | AD55: 1.610838835e+35 | AF55: 9.915605387e+11 | AG55: -1.19691274e+12 | AH55: -2.053522011e+11
A56: 38 | B56: 13320 | C56: 173905920 | D56: 0 | E56: -252761589.8 | F56: -598199686.7 | G56: 13056 | H56: 0 | I56: 4258.864511 | J56: 16364.86526 | K56: 734770732.3 | Q56: 173905920 | R56: 0 | W56: 2.467584e+31 | X56: 114554056.8 | Y56: 2.467584e+31 | Z56: 13056 | AA56: 16909.95984 | AB56: 1.610838835e+35 | AC56: -1.201745259e+12 | AD56: 1.610838835e+35 | AF56: 1.000813596e+12 | AG56: -1.201745259e+12 | AH56: -2.009316628e+11
A57: 39 | B57: 13680 | C57: 178606080 | D57: 0 | E57: -251219549.5 | F57: -592296000 | G57: 13056 | H57: 0 | I57: 4308.18579 | J57: 16433.41893 | K57: 731822808.7 | Q57: 178606080 | R57: 0 | W57: 2.467584e+31 | X57: 115033932.5 | Y57: 2.467584e+31 | Z57: 13056 | AA57: 16988.75282 | AB57: 1.610838835e+35 | AC57: -1.206586121e+12 | AD57: 1.610838835e+35 | AF57: 1.010162028e+12 | AG57: -1.206586121e+12 | AH57: -1.964240925e+11
A58: 40 | B58: 14040 | C58: 183306240 | D58: 0 | E58: -249659580.2 | F58: -586367608.1 | G58: 13056 | H58: 0 | I58: 4358.471844 | J58: 16502.11376 | K58: 728893938.4 | Q58: 183306240 | R58: 0 | W58: 2.467584e+31 | X58: 115514796.3 | Y58: 2.467584e+31 | Z58: 13056 | AA58: 17067.98275 | AB58: 1.610838835e+35 | AC58: -1.211434473e+12 | AD58: 1.610838835e+35 | AF58: 1.019606123e+12 | AG58: -1.211434473e+12 | AH58: -1.918283494e+11
A59: 41 | B59: 14400 | C59: 188006400 | D59: 0 | E59: -248081332.5 | F59: -580414462.5 | G59: 13056 | H59: 0 | I59: 4409.735103 | J59: 16570.93807 | K59: 725984475.5 | Q59: 188006400 | R59: 0 | W59: 2.467584e+31 | X59: 115996566.5 | Y59: 2.467584e+31 | Z59: 13056 | AA59: 17147.64567 | AB59: 1.610838835e+35 | AC59: -1.21628943e+12 | AD59: 1.610838835e+35 | AF59: 1.029146132e+12 | AG59: -1.21628943e+12 | AH59: -1.871432976e+11
A60: 42 | B60: 14760 | C60: 192706560 | D60: 0 | E60: -246484452.2 | F60: -574436518.6 | G60: 13056 | H60: 0 | I60: 4461.987926 | J60: 16639.87973 | K60: 723094778.8 | Q60: 192706560 | R60: 0 | W60: 2.467584e+31 | X60: 116479158.1 | Y60: 2.467584e+31 | Z60: 13056 | AA60: 17227.73734 | AB60: 1.610838835e+35 | AC60: -1.221150076e+12 | AD60: 1.610838835e+35 | AF60: 1.038782268e+12 | AG60: -1.221150076e+12 | AH60: -1.823678077e+11
A61: 43 | B61: 15120 | C61: 197406720 | D61: 0 | E61: -244868581 | F61: -568433736.5 | G61: 13056 | H61: 0 | I61: 4515.242589 | J61: 16708.92617 | K61: 720225211.1 | Q61: 197406720 | R61: 0 | W61: 2.467584e+31 | X61: 116962483.2 | Y61: 2.467584e+31 | Z61: 13056 | AA61: 17308.25322 | AB61: 1.610838835e+35 | AC61: -1.226015461e+12 | AD61: 1.610838835e+35 | AF61: 1.048514703e+12 | AG61: -1.226015461e+12 | AH61: -1.775007575e+11
A62: 44 | B62: 15480 | C62: 202106880 | D62: 0 | E62: -243233355.9 | F62: -562406080.8 | G62: 13056 | H62: 0 | I62: 4569.511274 | J62: 16778.06435 | K62: 717376139.4 | Q62: 202106880 | R62: 0 | W62: 2.467584e+31 | X62: 117446450.5 | Y62: 2.467584e+31 | Z62: 13056 | AA62: 17389.1885 | AB62: 1.610838835e+35 | AC62: -1.230884602e+12 | AD62: 1.610838835e+35 | AF62: 1.058343568e+12 | AG62: -1.230884602e+12 | AH62: -1.725410339e+11
A63: 45 | B63: 15840 | C63: 206807040 | D63: 0 | E63: -241578409.7 | F63: -556353520.8 | G63: 13056 | H63: 0 | I63: 4624.80605 | J63: 16847.28076 | K63: 714547935.2 | Q63: 206807040 | R63: 0 | W63: 2.467584e+31 | X63: 117930965.3 | Y63: 2.467584e+31 | Z63: 13056 | AA63: 17470.53806 | AB63: 1.610838835e+35 | AC63: -1.235756484e+12 | AD63: 1.610838835e+35 | AF63: 1.06826895e+12 | AG63: -1.235756484e+12 | AH63: -1.674875337e+11
A64: 46 | B64: 16200 | C64: 211507200 | D64: 0 | E64: -239903370.9 | F64: -550276030.9 | G64: 13056 | H64: 0 | I64: 4681.138858 | J64: 16916.56142 | K64: 711740973.8 | Q64: 211507200 | R64: 0 | W64: 2.467584e+31 | X64: 118415930 | Y64: 2.467584e+31 | Z64: 13056 | AA64: 17552.29647 | AB64: 1.610838835e+35 | AC64: -1.240630056e+12 | AD64: 1.610838835e+35 | AF64: 1.07829089e+12 | AG64: -1.240630056e+12 | AH64: -1.623391657e+11
A65: 47 | B65: 16560 | C65: 216207360 | D65: 0 | E65: -238207863.8 | F65: -544173590.6 | G65: 13056 | H65: 0 | I65: 4738.521497 | J65: 16985.89188 | K65: 708955634.9 | Q65: 216207360 | R65: 0 | W65: 2.467584e+31 | X65: 118901243.1 | Y65: 2.467584e+31 | Z65: 13056 | AA65: 17634.458 | AB65: 1.610838835e+35 | AC65: -1.245504233e+12 | AD65: 1.610838835e+35 | AF65: 1.088409381e+12 | AG65: -1.245504233e+12 | AH65: -1.570948515e+11
A66: 48 | B66: 16920 | C66: 220907520 | D66: 0 | E66: -236491508.1 | F66: -538046184.6 | G66: 13056 | H66: 0 | I66: 4796.965605 | J66: 17055.25717 | K66: 706192302.2 | Q66: 220907520 | R66: 0 | W66: 2.467584e+31 | X66: 119386800.2 | Y66: 2.467584e+31 | Z66: 13056 | AA66: 17717.01657 | AB66: 1.610838835e+35 | AC66: -1.250377895e+12 | AD66: 1.610838835e+35 | AF66: 1.098624367e+12 | AG66: -1.250377895e+12 | AH66: -1.517535276e+11
A67: 49 | B67: 17280 | C67: 225607680 | D67: 0 | E67: -234753919.8 | F67: -531893803.1 | G67: 13056 | H67: 0 | I67: 4856.48264 | J67: 17124.64187 | K67: 703451363.2 | Q67: 225607680 | R67: 0 | W67: 2.467584e+31 | X67: 119872493.1 | Y67: 2.467584e+31 | Z67: 13056 | AA67: 17799.96581 | AB67: 1.610838835e+35 | AC67: -1.255249887e+12 | AD67: 1.610838835e+35 | AF67: 1.10893574e+12 | AG67: -1.255249887e+12 | AH67: -1.463141468e+11
A68: 50 | B68: 17640 | C68: 230307840 | D68: 0 | E68: -232994710.5 | F68: -525716442 | G68: 13056 | H68: 0 | I68: 4917.083866 | J68: 17194.03003 | K68: 700733209.4 | Q68: 230307840 | R68: 0 | W68: 2.467584e+31 | X68: 120358210.2 | Y68: 2.467584e+31 | Z68: 13056 | AA68: 17883.29898 | AB68: 1.610838835e+35 | AC68: -1.260119018e+12 | AD68: 1.610838835e+35 | AF68: 1.119343339e+12 | AG68: -1.260119018e+12 | AH68: -1.407756795e+11
A69: 51 | B69: 18000 | C69: 235008000 | D69: 0 | E69: -231213488 | F69: -519514103 | G69: 13056 | H69: 0 | I69: 4978.780331 | J69: 17263.40522 | K69: 698038236.1 | Q69: 235008000 | R69: 0 | W69: 2.467584e+31 | X69: 120843836.5 | Y69: 2.467584e+31 | Z69: 13056 | AA69: 17967.00903 | AB69: 1.610838835e+35 | AC69: -1.264984063e+12 | AD69: 1.610838835e+35 | AF69: 1.129846947e+12 | AG69: -1.264984063e+12 | AH69: -1.351371162e+11
A70: 52 | B70: 18360 | C70: 239708160 | D70: 0 | E70: -229409855.9 | F70: -513286793.9 | G70: 13056 | H70: 0 | I70: 5041.582849 | J70: 17332.75048 | K70: 695366842.5 | Q70: 239708160 | R70: 0 | W70: 2.467584e+31 | X70: 121329253.4 | Y70: 2.467584e+31 | Z70: 13056 | AA70: 18051.08852 | AB70: 1.610838835e+35 | AC70: -1.269843757e+12 | AD70: 1.610838835e+35 | AF70: 1.140446289e+12 | AG70: -1.269843757e+12 | AH70: -1.293974685e+11
A71: 53 | B71: 18720 | C71: 244408320 | D71: 0 | E71: -227583414.3 | F71: -507034528.4 | G71: 13056 | H71: 0 | I71: 5105.501978 | J71: 17402.04836 | K71: 692719431.1 | Q71: 244408320 | R71: 0 | W71: 2.467584e+31 | X71: 121814338.5 | Y71: 2.467584e+31 | Z71: 13056 | AA71: 18135.5297 | AB71: 1.610838835e+35 | AC71: -1.274696803e+12 | AD71: 1.610838835e+35 | AF71: 1.151141031e+12 | AG71: -1.274696803e+12 | AH71: -1.235557714e+11
A72: 54 | B72: 19080 | C72: 249108480 | D72: 0 | E72: -225733759.3 | F72: -500757326.9 | G72: 13056 | H72: 0 | I72: 5170.548005 | J72: 17471.28088 | K72: 690096408.2 | Q72: 249108480 | R72: 0 | W72: 2.467584e+31 | X72: 122298966.2 | Y72: 2.467584e+31 | Z72: 13056 | AA72: 18220.32443 | AB72: 1.610838835e+35 | AC72: -1.279541863e+12 | AD72: 1.610838835e+35 | AF72: 1.161930778e+12 | AG72: -1.279541863e+12 | AH72: -1.176110849e+11
A73: 55 | B73: 19440 | C73: 253808640 | D73: 0 | E73: -223860483.3 | F73: -494455216.2 | G73: 13056 | H73: 0 | I73: 5236.730917 | J73: 17540.42957 | K73: 687498183.4 | Q73: 253808640 | R73: 0 | W73: 2.467584e+31 | X73: 122783007 | Y73: 2.467584e+31 | Z73: 13056 | AA73: 18305.46422 | AB73: 1.610838835e+35 | AC73: -1.284377567e+12 | AD73: 1.610838835e+35 | AF73: 1.172815071e+12 | AG73: -1.284377567e+12 | AH73: -1.115624963e+11
A74: 56 | B74: 19800 | C74: 258508800 | D74: 0 | E74: -221963175.4 | F74: -488128229.9 | G74: 13056 | H74: 0 | I74: 5304.060384 | J74: 17609.47541 | K74: 684925169.7 | Q74: 258508800 | R74: 0 | W74: 2.467584e+31 | X74: 123266327.9 | Y74: 2.467584e+31 | Z74: 13056 | AA74: 18390.94018 | AB74: 1.610838835e+35 | AC74: -1.289202504e+12 | AD74: 1.610838835e+35 | AF74: 1.183793383e+12 | AG74: -1.289202504e+12 | AH74: -1.054091216e+11
A75: 57 | B75: 20160 | C75: 263208960 | D75: 0 | E75: -220041421.1 | F75: -481776408.6 | G75: 13056 | H75: 0 | I75: 5372.545737 | J75: 17678.39889 | K75: 682377783 | Q75: 263208960 | R75: 0 | W75: 2.467584e+31 | X75: 123748792.2 | Y75: 2.467584e+31 | Z75: 13056 | AA75: 18476.74308 | AB75: 1.610838835e+35 | AC75: -1.29401523e+12 | AD75: 1.610838835e+35 | AF75: 1.194865122e+12 | AG75: -1.29401523e+12 | AH75: -9.915010821e+10
A76: 58 | B76: 20520 | C76: 267909120 | D76: 0 | E76: -218094802.7 | F76: -475399799.8 | G76: 13056 | H76: 0 | I76: 5442.195944 | J76: 17747.17996 | K76: 679856442.6 | Q76: 267909120 | R76: 0 | W76: 2.467584e+31 | X76: 124230259.7 | Y76: 2.467584e+31 | Z76: 13056 | AA76: 18562.86328 | AB76: 1.610838835e+35 | AC76: -1.298814262e+12 | AD76: 1.610838835e+35 | AF76: 1.206029626e+12 | AG76: -1.298814262e+12 | AH76: -9.27846365e+10
A77: 59 | B77: 20880 | C77: 272609280 | D77: 0 | E77: -216122899.2 | F77: -468998458.6 | G77: 13056 | H77: 0 | I77: 5513.019586 | J77: 17815.79806 | K77: 677361570.5 | Q77: 272609280 | R77: 0 | W77: 2.467584e+31 | X77: 124710586.4 | Y77: 2.467584e+31 | Z77: 13056 | AA77: 18649.29075 | AB77: 1.610838835e+35 | AC77: -1.303598082e+12 | AD77: 1.610838835e+35 | AF77: 1.21728616e+12 | AG77: -1.303598082e+12 | AH77: -8.631192219e+10
A78: 60 | B78: 21240 | C78: 277309440 | D78: 0 | E78: -214125286.8 | F78: -462572447.3 | G78: 13056 | H78: 0 | I78: 5585.024835 | J78: 17884.23214 | K78: 674893591.4 | Q78: 277309440 | R78: 0 | W78: 2.467584e+31 | X78: 125189625 | Y78: 2.467584e+31 | Z78: 13056 | AA78: 18736.01509 | AB78: 1.610838835e+35 | AC78: -1.308365134e+12 | AD78: 1.610838835e+35 | AF78: 1.228633915e+12 | AG78: -1.308365134e+12 | AH78: -7.973121849e+10
A79: 61 | B79: 21600 | C79: 282009600 | D79: 0 | E79: -212101538.6 | F79: -456121836.1 | G79: 13056 | H79: 0 | I79: 5658.219428 | J79: 17952.46059 | K79: 672452932.7 | Q79: 282009600 | R79: 0 | W79: 2.467584e+31 | X79: 125667224.1 | Y79: 2.467584e+31 | Z79: 13056 | AA79: 18823.02548 | AB79: 1.610838835e+35 | AC79: -1.313113827e+12 | AD79: 1.610838835e+35 | AF79: 1.240072009e+12 | AG79: -1.313113827e+12 | AH79: -7.304181826e+10
A80: 62 | B80: 21960 | C80: 286709760 | D80: 0 | E80: -210051225.2 | F80: -449646703 | G80: 13056 | H80: 0 | I80: 5732.610643 | J80: 18020.46132 | K80: 670040024.1 | Q80: 286709760 | R80: 0 | W80: 2.467584e+31 | X80: 126143229.3 | Y80: 2.467584e+31 | Z80: 13056 | AA80: 18910.31071 | AB80: 1.610838835e+35 | AC80: -1.317842535e+12 | AD80: 1.610838835e+35 | AF80: 1.251599479e+12 | AG80: -1.317842535e+12 | AH80: -6.62430563e+10
A81: 63 | B81: 22320 | C81: 291409920 | D81: 0 | E81: -207973914.6 | F81: -443147134 | G81: 13056 | H81: 0 | I81: 5808.205276 | J81: 18088.21174 | K81: 667655297.7 | Q81: 291409920 | R81: 0 | W81: 2.467584e+31 | X81: 126617482.2 | Y81: 2.467584e+31 | Z81: 13056 | AA81: 18997.85916 | AB81: 1.610838835e+35 | AC81: -1.322549596e+12 | AD81: 1.610838835e+35 | AF81: 1.263215284e+12 | AG81: -1.322549596e+12 | AH81: -5.933431163e+10
A82: 64 | B82: 22680 | C82: 296110080 | D82: 0 | E82: -205869172.3 | F82: -436623223.4 | G82: 13056 | H82: 0 | I82: 5885.009611 | J82: 18155.68875 | K82: 665299187.5 | Q82: 296110080 | R82: 0 | W82: 2.467584e+31 | X82: 127089821.2 | Y82: 2.467584e+31 | Z82: 13056 | AA82: 19085.6588 | AB82: 1.610838835e+35 | AC82: -1.327233312e+12 | AD82: 1.610838835e+35 | AF82: 1.274918302e+12 | AG82: -1.327233312e+12 | AH82: -5.231500982e+10
A83: 65 | B83: 23040 | C83: 300810240 | D83: 0 | E83: -203736561.8 | F83: -430075073.7 | G83: 13056 | H83: 0 | I83: 5963.029399 | J83: 18222.86875 | K83: 662972129.3 | Q83: =C83 -> 300810240 | R83: 0 | W83: 2.467584e+31 | X83: 127560081.2 | Y83: 2.467584e+31 | Z83: 13056 | AA83: 19173.69722 | AB83: 1.610838835e+35 | AC83: -1.331891953e+12 | AD83: 1.610838835e+35 | AF83: 1.286707328e+12 | AG83: -1.331891953e+12 | AH83: -4.518462531e+10
A84: 66 | B84: 23400 | C84: 305510400 | D84: 0 | E84: -201575644.6 | F84: -423502796.4 | G84: 13056 | H84: 0 | I84: 6042.269831 | J84: 18289.72767 | K84: 660674560.7 | Q84: 305510400 | R84: 0 | W84: =$I$4*G84+$J$4*I84 -> 2.467584e+31 | X84: =$I$4*H84+$J$4*J84 -> 128028093.7 | Y84: =SQRT(W84^2+X84^2) -> 2.467584e+31 | Z84: =SQRT(G84^2+H84^2) -> 13056 | AA84: =SQRT(I84^2+J84^2) -> 19261.96155 | AB84: =($I$4*Z84^2+$J$4*AA84^2)/2 -> 1.610838835e+35 | AC84: =-0.0000000000667428*$I$4*$J$4/K84 -> -1.336523754e+12 | AD84: =AB84+AC84 -> 1.610838835e+35 | AF84: =0.5*$J$4*AA84^2 -> 1.29858107e+12 | AG84: =AC84 -> -1.336523754e+12 | AH84: =AF84+AG84 -> -3.794268382e+10
A85: 67 | B85: 23760 | C85: 310210560 | D85: 0 | E85: -199385980.5 | F85: -416906511.3 | G85: 13056 | H85: 0 | I85: 6122.735508 | J85: 18356.24096 | K85: 658406920.7 | Q85: 310210560 | R85: 0 | W85: 2.467584e+31 | X85: 128493686.7 | Y85: 2.467584e+31 | Z85: 13056 | AA85: 19350.43855 | AB85: 1.610838835e+35 | AC85: -1.341126917e+12 | AD85: 1.610838835e+35 | AF85: 1.310538153e+12 | AG85: -1.341126917e+12 | AH85: -3.058876467e+10
A86: 68 | B86: 24120 | C86: 314910720 | D86: 0 | E86: -197167127.5 | F86: -410286347.4 | G86: 13056 | H86: 0 | I86: 6204.43042 | J86: 18422.38361 | K86: 656169649.4 | Q86: 314910720 | R86: 0 | W86: 2.467584e+31 | X86: 128956685.2 | Y86: 2.467584e+31 | Z86: 13056 | AA86: 19439.11455 | AB86: 1.610838835e+35 | AC86: -1.345699614e+12 | AD86: 1.610838835e+35 | AF86: 1.322577111e+12 | AG86: -1.345699614e+12 | AH86: -2.312250327e+10
A87: 69 | B87: 24480 | C87: 319610880 | D87: 0 | E87: -194918642.7 | F87: -403642442.6 | G87: 13056 | H87: 0 | I87: 6287.357917 | J87: 18488.13014 | K87: 653963187.9 | Q87: 319610880 | R87: 0 | W87: 2.467584e+31 | X87: 129416911 | Y87: 2.467584e+31 | Z87: 13056 | AA87: 19527.97546 | AB87: 1.610838835e+35 | AC87: -1.350239983e+12 | AD87: 1.610838835e+35 | AF87: 1.33469639e+12 | AG87: -1.350239983e+12 | AH87: -1.554359343e+10
A88: 70 | B88: 24840 | C88: 324311040 | D88: 0 | E88: -192640081.6 | F88: -396974944.3 | G88: 13056 | H88: 0 | I88: 6371.520684 | J88: 18553.45466 | K88: 651787978.2 | Q88: 324311040 | R88: 0 | W88: 2.467584e+31 | X88: 129874182.6 | Y88: 2.467584e+31 | Z88: 13056 | AA88: 19617.0068 | AB88: 1.610838835e+35 | AC88: -1.354746135e+12 | AD88: 1.610838835e+35 | AF88: 1.346894345e+12 | AG88: -1.354746135e+12 | AH88: -7851789863
A89: 71 | B89: 25200 | C89: 329011200 | D89: 0 | E89: -190330999.3 | F89: -390284009.1 | G89: 13056 | H89: 0 | I89: 6456.920712 | J89: 18618.33083 | K89: 649644462.5 | Q89: 329011200 | R89: 0 | W89: 2.467584e+31 | X89: 130328315.8 | Y89: 2.467584e+31 | Z89: 13056 | AA89: 19706.19364 | AB89: 1.610838835e+35 | AC89: -1.359216148e+12 | AD89: 1.610838835e+35 | AF89: 1.359169238e+12 | AG89: -1.359216148e+12 | AH89: -46910515.32
A90: 72 | B90: 25560 | C90: 333711360 | D90: 0 | E90: -187990950.1 | F90: -383569803.1 | G90: 13056 | H90: 0 | I90: 6543.559274 | J90: 18682.7319 | K90: 647533083.5 | Q90: 333711360 | R90: 0 | W90: 2.467584e+31 | X90: 130779123.3 | Y90: 2.467584e+31 | Z90: 13056 | AA90: 19795.52069 | AB90: 1.610838835e+35 | AC90: -1.363648077e+12 | AD90: 1.610838835e+35 | AF90: 1.371519238e+12 | AG90: -1.363648077e+12 | AH90: 7871160994
A91: 73 | B91: 25920 | C91: 338411520 | D91: 0 | E91: -185619487.9 | F91: -376832502.4 | G91: 13056 | H91: 0 | I91: 6631.4369 | J91: 18746.63076 | K91: 645454283.5 | Q91: 338411520 | R91: 0 | W91: 2.467584e+31 | X91: 131226415.3 | Y91: 2.467584e+31 | Z91: 13056 | AA91: 19884.97222 | AB91: 1.610838835e+35 | AC91: -1.368039947e+12 | AD91: 1.610838835e+35 | AF91: 1.38394242e+12 | AG91: -1.368039947e+12 | AH91: 1.590247301e+10
A92: 74 | B92: 26280 | C92: 343111680 | D92: 0 | E92: -183216166.8 | F92: -370072292.5 | G92: 13056 | H92: 0 | I92: 6720.553349 | J92: 18809.99988 | K92: 643408504.8 | Q92: 343111680 | R92: 0 | W92: 2.467584e+31 | X92: 131669999.1 | Y92: 2.467584e+31 | Z92: 13056 | AA92: 19974.5321 | AB92: 1.610838835e+35 | AC92: -1.372389761e+12 | AD92: 1.610838835e+35 | AF92: 1.396436764e+12 | AG92: -1.372389761e+12 | AH92: 2.40470035e+10
A93: 75 | B93: 26640 | C93: 347811840 | D93: 0 | E93: -180780541 | F93: -363289369.4 | G93: 13056 | H93: 0 | I93: 6810.907583 | J93: 18872.8114 | K93: 641396188.9 | Q93: 347811840 | R93: 0 | W93: 2.467584e+31 | X93: 132109679.8 | Y93: 2.467584e+31 | Z93: 13056 | AA93: 20064.18382 | AB93: 1.610838835e+35 | AC93: -1.376695495e+12 | AD93: 1.610838835e+35 | AF93: 1.409000153e+12 | AG93: -1.376695495e+12 | AH93: 3.230465769e+10
A94: 76 | B94: 27000 | C94: 352512000 | D94: 0 | E94: -178312165.1 | F94: -356483938.6 | G94: 13056 | H94: 0 | I94: 6902.497746 | J94: 18935.03714 | K94: 639417776.3 | Q94: 352512000 | R94: 0 | W94: 2.467584e+31 | X94: 132545260 | Y94: 2.467584e+31 | Z94: 13056 | AA94: 20153.91046 | AB94: 1.610838835e+35 | AC94: -1.380955107e+12 | AD94: 1.610838835e+35 | AF94: 1.421630373e+12 | AG94: -1.380955107e+12 | AH94: 4.067526585e+10
A95: 77 | B95: 27360 | C95: 357212160 | D95: 0 | E95: -175810594.6 | F95: -349656216.3 | G95: 13056 | H95: 0 | I95: 6995.321135 | J95: 18996.64859 | K95: 637473706.6 | Q95: 357212160 | R95: 0 | W95: 2.467584e+31 | X95: 132976540.1 | Y95: 2.467584e+31 | Z95: 13056 | AA95: 20243.69471 | AB95: 1.610838835e+35 | AC95: -1.385166533e+12 | AD95: 1.610838835e+35 | AF95: 1.434325114e+12 | AG95: -1.385166533e+12 | AH95: 4.9158581e+10
A96: 78 | B96: 27720 | C96: 361912320 | D96: 0 | E96: -173275386.3 | F96: -342806428.8 | G96: 13056 | H96: 0 | I96: 7089.374179 | J96: 19057.61696 | K96: 635564417.3 | Q96: 361912320 | R96: 0 | W96: 2.467584e+31 | X96: 133403318.8 | Y96: 2.467584e+31 | Z96: 13056 | AA96: 20333.51889 | AB96: 1.610838835e+35 | AC96: -1.38932769e+12 | AD96: 1.610838835e+35 | AF96: 1.447081967e+12 | AG96: -1.38932769e+12 | AH96: 5.775427677e+10
A97: 79 | B97: 28080 | C97: 366612480 | D97: 0 | E97: -170706098.2 | F97: -335934812.8 | G97: 13056 | H97: 0 | I97: 7184.652414 | J97: 19117.91322 | K97: 633690344.6 | Q97: 366612480 | R97: 0 | W97: 2.467584e+31 | X97: 133825392.5 | Y97: 2.467584e+31 | Z97: 13056 | AA97: 20423.36496 | AB97: 1.610838835e+35 | AC97: -1.393436481e+12 | AD97: 1.610838835e+35 | AF97: 1.459898426e+12 | AG97: -1.393436481e+12 | AH97: 6.646194524e+10
A98: 80 | B98: 28440 | C98: 371312640 | D98: 0 | E98: -168102290.2 | F98: -329041615.5 | G98: 13056 | H98: 0 | I98: 7281.150463 | J98: 19177.50808 | K98: 631851922.2 | Q98: 371312640 | R98: 0 | W98: 2.467584e+31 | X98: 134242556.5 | Y98: 2.467584e+31 | Z98: 13056 | AA98: 20513.21447 | AB98: 1.610838835e+35 | AC98: -1.397490793e+12 | AD98: 1.610838835e+35 | AF98: 1.472771888e+12 | AG98: -1.397490793e+12 | AH98: 7.528109498e+10
A99: 81 | B99: 28800 | C99: 376012800 | D99: 0 | E99: -165463524.2 | F99: -322127094.7 | G99: 13056 | H99: 0 | I99: 7378.862014 | J99: 19236.37206 | K99: 630049581.2 | Q99: 376012800 | R99: 0 | W99: 2.467584e+31 | X99: 134654604.4 | Y99: 2.467584e+31 | Z99: 13056 | AA99: 20603.04867 | AB99: 1.610838835e+35 | AC99: -1.401488502e+12 | AD99: 1.610838835e+35 | AF99: 1.485699651e+12 | AG99: -1.401488502e+12 | AH99: 8.4211149e+10
A100: 82 | B100: 29160 | C100: 380712960 | D100: 0 | E100: -162789364.8 | F100: -315191518.8 | G100: 13056 | H100: 0 | I100: 7477.779796 | J100: 19294.47552 | K100: 628283750 | Q100: 380712960 | R100: 0 | W100: 2.467584e+31 | X100: 135061328.7 | Y100: 2.467584e+31 | Z100: 13056 | AA100: 20692.84844 | AB100: 1.610838835e+35 | AC100: -1.405427474e+12 | AD100: 1.610838835e+35 | AF100: 1.498678917e+12 | AG100: -1.405427474e+12 | AH100: 9.325144294e+10
A101: 83 | B101: 29520 | C101: 385413120 | D101: 0 | E101: -160079379 | F101: -308235167.1 | G101: 13056 | H101: 0 | I101: 7577.895565 | J101: 19351.78867 | K101: 626554853.7 | Q101: 385413120 | R101: 0 | W101: 2.467584e+31 | X101: 135462520.7 | Y101: 2.467584e+31 | Z101: 13056 | AA101: 20782.59431 | AB101: 1.610838835e+35 | AC101: -1.409305568e+12 | AD101: 1.610838835e+35 | AF101: 1.511706791e+12 | AG101: -1.409305568e+12 | AH101: 1.024012233e+11
A102: 84 | B102: 29880 | C102: 390113280 | D102: 0 | E102: -157333137.3 | F102: -301258329.4 | G102: 13056 | H102: 0 | I102: 7679.200082 | J102: 19408.28162 | K102: 624863313.7 | Q102: 390113280 | R102: 0 | W102: 2.467584e+31 | X102: 135857971.3 | Y102: 2.467584e+31 | Z102: 13056 | AA102: 20872.26651 | AB102: 1.610838835e+35 | AC102: -1.413120637e+12 | AD102: 1.610838835e+35 | AF102: 1.524780283e+12 | AG102: -1.413120637e+12 | AH102: 1.116596458e+11
A103: 85 | B103: 30240 | C103: 394813440 | D103: 0 | E103: -154550213.5 | F103: -294261306.4 | G103: 13056 | H103: 0 | I103: 7781.6831 | J103: 19463.9244 | K103: 623209547.6 | Q103: 394813440 | R103: 0 | W103: 2.467584e+31 | X103: 136247470.8 | Y103: 2.467584e+31 | Z103: 13056 | AA103: 20961.84498 | AB103: 1.610838835e+35 | AC103: -1.416870533e+12 | AD103: 1.610838835e+35 | AF103: 1.537896307e+12 | AG103: -1.416870533e+12 | AH103: 1.210257737e+11
A104: 86 | B104: 30600 | C104: 399513600 | D104: 0 | E104: -151730185.4 | F104: -287244409.5 | G104: 13056 | H104: 0 | I104: 7885.333342 | J104: 19518.687 | K104: 621593968.5 | Q104: 399513600 | R104: 0 | W104: 2.467584e+31 | X104: 136630809 | Y104: 2.467584e+31 | Z104: 13056 | AA104: 21051.30932 | AB104: 1.610838835e+35 | AC104: -1.420553108e+12 | AD104: 1.610838835e+35 | AF104: 1.551051685e+12 | AG104: -1.420553108e+12 | AH104: 1.304985766e+11
A105: 87 | B105: 30960 | C105: 404213760 | D105: 0 | E105: -148872634.9 | F105: -280207961 | G105: 13056 | H105: 0 | I105: 7990.138494 | J105: 19572.53944 | K105: 620016984.9 | Q105: 404213760 | R105: 0 | W105: 2.467584e+31 | X105: 137007776.1 | Y105: 2.467584e+31 | Z105: 13056 | AA105: 21140.6389 | AB105: 1.610838835e+35 | AC105: -1.424166217e+12 | AD105: 1.610838835e+35 | AF105: 1.564243146e+12 | AG105: -1.424166217e+12 | AH105: 1.400769291e+11
A106: 88 | B106: 31320 | C106: 408913920 | D106: 0 | E106: -145977148.7 | F106: -273152293.9 | G106: 13056 | H106: 0 | I106: 8096.08519 | J106: 19625.45175 | K106: 618479000.3 | Q106: 408913920 | R106: 0 | W106: 2.467584e+31 | X106: 137378162.2 | Y106: 2.467584e+31 | Z106: 13056 | AA106: 21229.8128 | AB106: 1.610838835e+35 | AC106: -1.427707721e+12 | AD106: 1.610838835e+35 | AF106: 1.577467331e+12 | AG106: -1.427707721e+12 | AH106: 1.497596095e+11
A107: 89 | B107: 31680 | C107: 413614080 | D107: 0 | E107: -143043318.3 | F107: -266077752.1 | G107: 13056 | H107: 0 | I107: 8203.159001 | J107: 19677.39405 | K107: 616980412.4 | Q107: 413614080 | R107: 0 | W107: 2.467584e+31 | X107: 137741758.3 | Y107: 2.467584e+31 | Z107: 13056 | AA107: 21318.80987 | AB107: 1.610838835e+35 | AC107: -1.43117549e+12 | AD107: 1.610838835e+35 | AF107: 1.590720789e+12 | AG107: -1.43117549e+12 | AH107: 1.595452993e+11
A108: 90 | B108: 32040 | C108: 418314240 | D108: 0 | E108: -140070740.8 | F108: -258984690.1 | G108: 13056 | H108: 0 | I108: 8311.344425 | J108: 19728.33659 | K108: 615521613.4 | Q108: 418314240 | R108: 0 | W108: 2.467584e+31 | X108: 138098356.1 | Y108: 2.467584e+31 | Z108: 13056 | AA108: 21407.60871 | AB108: 1.610838835e+35 | AC108: -1.434567406e+12 | AD108: 1.610838835e+35 | AF108: 1.603999987e+12 | AG108: -1.434567406e+12 | AH108: 1.694325816e+11
A109: 91 | B109: 32400 | C109: 423014400 | D109: 0 | E109: -137059018.9 | F109: -251873473.3 | G109: 13056 | H109: 0 | I109: 8420.624884 | J109: 19778.24977 | K109: 614102989 | Q109: 423014400 | R109: 0 | W109: 2.467584e+31 | X109: 138447748.4 | Y109: 2.467584e+31 | Z109: 13056 | AA109: 21496.18774 | AB109: 1.610838835e+35 | AC109: -1.437881365e+12 | AD109: 1.610838835e+35 | AF109: 1.617301306e+12 | AG109: -1.437881365e+12 | AH109: 1.794199412e+11
A110: 92 | B110: 32760 | C110: 427714560 | D110: 0 | E110: -134007761.6 | F110: -244744477.4 | G110: 13056 | H110: 0 | I110: 8530.982714 | J110: 19827.10421 | K110: 612724918.5 | Q110: 427714560 | R110: 0 | W110: 2.467584e+31 | X110: 138789729.5 | Y110: 2.467584e+31 | Z110: 13056 | AA110: 21584.52519 | AB110: 1.610838835e+35 | AC110: -1.441115282e+12 | AD110: 1.610838835e+35 | AF110: 1.630621046e+12 | AG110: -1.441115282e+12 | AH110: 1.895057641e+11
A111: 93 | B111: 33120 | C111: 432414720 | D111: 0 | E111: -130916584.3 | F111: -237598088.8 | G111: 13056 | H111: 0 | I111: 8642.399167 | J111: 19874.87078 | K111: 611387774 | Q111: 432414720 | R111: 0 | W111: 2.467584e+31 | X111: 139124095.4 | Y111: 2.467584e+31 | Z111: 13056 | AA111: 21672.5991 | AB111: 1.610838835e+35 | AC111: -1.444267094e+12 | AD111: 1.610838835e+35 | AF111: 1.643955431e+12 | AG111: -1.444267094e+12 | AH111: 1.996883365e+11
A112: 94 | B112: 33480 | C112: 437114880 | D112: 0 | E112: -127785109.5 | F112: -230434704.4 | G112: 13056 | H112: 0 | I112: 8754.854406 | J112: 19921.52061 | K112: 610091920.3 | Q112: 437114880 | R112: 0 | W112: 2.467584e+31 | X112: 139450644.3 | Y112: 2.467584e+31 | Z112: 13056 | AA112: 21760.38739 | AB112: 1.610838835e+35 | AC112: -1.447334762e+12 | AD112: 1.610838835e+35 | AF112: 1.657300607e+12 | AG112: -1.447334762e+12 | AH112: 2.099658457e+11
A113: 95 | B113: 33840 | C113: 441815040 | D113: 0 | E113: -124612967 | F113: -223254731.4 | G113: 13056 | H113: 0 | I113: 8868.32751 | J113: 19967.02522 | K113: 608837714.2 | Q113: 441815040 | R113: 0 | W113: 2.467584e+31 | X113: 139769176.6 | Y113: 2.467584e+31 | Z113: 13056 | AA113: 21847.86784 | AB113: 1.610838835e+35 | AC113: -1.450316272e+12 | AD113: 1.610838835e+35 | AF113: 1.670652652e+12 | AG113: -1.450316272e+12 | AH113: 2.203363796e+11
A114: 96 | B114: 34200 | C114: 446515200 | D114: 0 | E114: -121399794.2 | F114: -216058587.1 | G114: 13056 | H114: 0 | I114: 8982.796474 | J114: 20011.35648 | K114: 607625504.5 | Q114: 446515200 | R114: 0 | W114: 2.467584e+31 | X114: 140079495.4 | Y114: 2.467584e+31 | Z114: 13056 | AA114: 21935.01814 | AB114: 1.610838835e+35 | AC114: -1.453209646e+12 | AD114: 1.610838835e+35 | AF114: 1.684007573e+12 | AG114: -1.453209646e+12 | AH114: 2.307979272e+11
A115: 97 | B115: 34560 | C115: 451215360 | D115: 0 | E115: -118145236.8 | F115: -208846698.8 | G115: 13056 | H115: 0 | I115: 9098.238221 | J115: 20054.4867 | K115: 606455631.4 | Q115: 451215360 | R115: 0 | W115: 2.467584e+31 | X115: 140381406.9 | Y115: 2.467584e+31 | Z115: 13056 | AA115: 22021.8159 | AB115: 1.610838835e+35 | AC115: -1.456012935e+12 | AD115: 1.610838835e+35 | AF115: 1.697361315e+12 | AG115: -1.456012935e+12 | AH115: 2.413483793e+11
A116: 98 | B116: 34920 | C116: 455915520 | D116: 0 | E116: -114848948.9 | F116: -201619504 | G116: 13056 | H116: 0 | I116: 9214.628603 | J116: 20096.38867 | K116: 605328426 | Q116: 455915520 | R116: 0 | W116: 2.467584e+31 | X116: 140674720.7 | Y116: 2.467584e+31 | Z116: 13056 | AA116: 22108.23869 | AB116: 1.610838835e+35 | AC116: -1.458724233e+12 | AD116: 1.610838835e+35 | AF116: 1.710709762e+12 | AG116: -1.458724233e+12 | AH116: 2.519855291e+11
A117: 99 | B117: 35280 | C117: 460615680 | D117: 0 | E117: -111510593.4 | F117: -194377449.6 | G117: 13056 | H117: 0 | I117: 9331.942417 | J117: 20137.03569 | K117: 604244210.2 | Q117: 460615680 | R117: 0 | W117: 2.467584e+31 | X117: 140959249.8 | Y117: 2.467584e+31 | Z117: 13056 | AA117: 22194.26402 | AB117: 1.610838835e+35 | AC117: -1.461341671e+12 | AD117: 1.610838835e+35 | AF117: 1.724048744e+12 | AG117: -1.461341671e+12 | AH117: 2.627070733e+11
A118: 100 | B118: 35640 | C118: 465315840 | D118: 0 | E118: -108129842.7 | F118: -187120992.1 | G118: 13056 | H118: 0 | I118: 9450.153418 | J118: 20176.40164 | K118: 603203296.3 | Q118: 465315840 | R118: 0 | W118: 2.467584e+31 | X118: 141234811.5 | Y118: 2.467584e+31 | Z118: 13056 | AA118: 22279.86945 | AB118: 1.610838835e+35 | AC118: -1.463863426e+12 | AD118: 1.610838835e+35 | AF118: 1.737374039e+12 | AG118: -1.463863426e+12 | AH118: 2.735106131e+11
A119: 101 | B119: 36000 | C119: 470016000 | D119: 0 | E119: -104706378.5 | F119: -179850597.2 | G119: 13056 | H119: 0 | I119: 9569.234334 | J119: 20214.46101 | K119: 602205986.1 | Q119: 470016000 | R119: 0 | W119: 2.467584e+31 | X119: 141501227.1 | Y119: 2.467584e+31 | Z119: 13056 | AA119: 22365.03252 | AB119: 1.610838835e+35 | AC119: -1.466287723e+12 | AD119: 1.610838835e+35 | AF119: 1.750681379e+12 | AG119: -1.466287723e+12 | AH119: 2.843936561e+11
A120: 102 | B120: 36360 | C120: 474716160 | D120: 0 | E120: -101239892.9 | F120: -172566739.9 | G120: 13056 | H120: 0 | I120: 9689.156882 | J120: 20251.18896 | K120: 601252571.4 | Q120: 474716160 | R120: 0 | W120: 2.467584e+31 | X120: 141758322.7 | Y120: 2.467584e+31 | Z120: 13056 | AA120: 22449.73085 | AB120: 1.610838835e+35 | AC120: -1.468612836e+12 | AD120: 1.610838835e+35 | AF120: 1.763966454e+12 | AG120: -1.468612836e+12 | AH120: 2.953536176e+11
A121: 103 | B121: 36720 | C121: 479416320 | D121: 0 | E121: -97730088.09 | F121: -165269903.8 | G121: 13056 | H121: 0 | I121: 9809.891795 | J121: 20286.56134 | K121: 600343333 | Q121: 479416320 | R121: 0 | W121: 2.467584e+31 | X121: 142005929.4 | Y121: 2.467584e+31 | Z121: 13056 | AA121: 22533.94213 | AB121: 1.610838835e+35 | AC121: -1.470837095e+12 | AD121: 1.610838835e+35 | AF121: 1.777224918e+12 | AG121: -1.470837095e+12 | AH121: 3.063878228e+11
A122: 104 | B122: 37080 | C122: 484116480 | D122: 0 | E122: -94176676.98 | F122: -157960581.2 | G122: 13056 | H122: 0 | I122: 9931.408839 | J122: 20320.55476 | K122: 599478540.6 | Q122: 484116480 | R122: 0 | W122: 2.467584e+31 | X122: 142243883.3 | Y122: 2.467584e+31 | Z122: 13056 | AA122: 22617.64416 | AB122: 1.610838835e+35 | AC122: -1.472958887e+12 | AD122: 1.610838835e+35 | AF122: 1.790452396e+12 | AG122: -1.472958887e+12 | AH122: 3.174935085e+11
A123: 105 | B123: 37440 | C123: 488816640 | D123: 0 | E123: -90579383.61 | F123: -150639272.6 | G123: 13056 | H123: 0 | I123: 10053.67684 | J123: 20353.14663 | K123: 598658452.4 | Q123: 488816640 | R123: 0 | W123: 2.467584e+31 | X123: 142472026.4 | Y123: 2.467584e+31 | Z123: 13056 | AA123: 22700.81487 | AB123: 1.610838835e+35 | AC123: -1.474976659e+12 | AD123: 1.610838835e+35 | AF123: 1.803644485e+12 | AG123: -1.474976659e+12 | AH123: 3.286678261e+11
A124: 106 | B124: 37800 | C124: 493516800 | D124: 0 | E124: -86937943.38 | F124: -143306486.5 | G124: 13056 | H124: 0 | I124: 10176.66373 | J124: 20384.31518 | K124: 597883314.8 | Q124: 493516800 | R124: 0 | W124: 2.467584e+31 | X124: 142690206.3 | Y124: 2.467584e+31 | Z124: 13056 | AA124: 22783.43236 | AB124: 1.610838835e+35 | AC124: -1.476888921e+12 | AD124: 1.610838835e+35 | AF124: 1.816796765e+12 | AG124: -1.476888921e+12 | AH124: 3.399078436e+11
A125: 107 | B125: 38160 | C125: 498216960 | D125: 0 | E125: -83252103.4 | F125: -135962739 | G125: 13056 | H125: 0 | I125: 10300.33654 | J125: 20414.03953 | K125: 597153362.3 | Q125: 498216960 | R125: 0 | W125: 2.467584e+31 | X125: 142898276.7 | Y125: 2.467584e+31 | Z125: 13056 | AA125: 22865.47491 | AB125: 1.610838835e+35 | AC125: -1.478694251e+12 | AD125: 1.610838835e+35 | AF125: 1.8299048e+12 | AG125: -1.478694251e+12 | AH125: 3.51210549e+11
A126: 108 | B126: 38520 | C126: 502917120 | D126: 0 | E126: -79521622.81 | F126: -128608553.7 | G126: 13056 | H126: 0 | I126: 10424.66147 | J126: 20442.29973 | K126: 596468816.6 | Q126: 502917120 | R126: 0 | W126: 2.467584e+31 | X126: 143096098.1 | Y126: 2.467584e+31 | Z126: 13056 | AA126: 22946.92104 | AB126: 1.610838835e+35 | AC126: -1.480391295e+12 | AD126: 1.610838835e+35 | AF126: 1.842964148e+12 | AG126: -1.480391295e+12 | AH126: 3.625728528e+11
A127: 109 | B127: 38880 | C127: 507617280 | D127: 0 | E127: -75746273.04 | F127: -121244461.2 | G127: 13056 | H127: 0 | I127: 10549.6039 | J127: 20469.07678 | K127: 595829887.1 | Q127: 507617280 | R127: 0 | W127: 2.467584e+31 | X127: 143283537.4 | Y127: 2.467584e+31 | Z127: 13056 | AA127: 23027.74949 | AB127: 1.610838835e+35 | AC127: -1.481978771e+12 | AD127: 1.610838835e+35 | AF127: 1.855970363e+12 | AG127: -1.481978771e+12 | AH127: 3.739915917e+11
A128: 110 | B128: 39240 | C128: 512317440 | D128: 0 | E128: -71925838.14 | F128: -113870998.6 | G128: 13056 | H128: 0 | I128: 10675.12846 | J128: 20494.35266 | K128: 595236770 | Q128: 512317440 | R128: 0 | W128: 2.467584e+31 | X128: 143460468.6 | Y128: 2.467584e+31 | Z128: 13056 | AA128: 23107.9393 | AB128: 1.610838835e+35 | AC128: -1.483455473e+12 | AD128: 1.610838835e+35 | AF128: 1.868919005e+12 | AG128: -1.483455473e+12 | AH128: 3.85463532e+11
A129: 111 | B129: 39600 | C129: 517017600 | D129: 0 | E129: -68060115.03 | F129: -106488709.4 | G129: 13056 | H129: 0 | I129: 10801.19902 | J129: 20518.11041 | K129: 594689648.4 | Q129: 517017600 | R129: 0 | W129: 2.467584e+31 | X129: 143626772.9 | Y129: 2.467584e+31 | Z129: 13056 | AA129: 23187.46978 | AB129: 1.610838835e+35 | AC129: -1.48482027e+12 | AD129: 1.610838835e+35 | AF129: 1.881805642e+12 | AG129: -1.48482027e+12 | AH129: 3.969853728e+11
A130: 112 | B130: 39960 | C130: 521717760 | D130: 0 | E130: -64148913.74 | F130: -99098143.16 | G130: 13056 | H130: 0 | I130: 10927.77879 | J130: 20540.33412 | K130: 594188691.7 | Q130: 521717760 | R130: 0 | W130: 2.467584e+31 | X130: 143782338.9 | Y130: 2.467584e+31 | Z130: 13056 | AA130: 23266.32062 | AB130: 1.610838835e+35 | AC130: -1.486072112e+12 | AD130: 1.610838835e+35 | AF130: 1.894625863e+12 | AG130: -1.486072112e+12 | AH130: 4.085537507e+11
A131: 113 | B131: 40320 | C131: 526417920 | D131: 0 | E131: -60192057.69 | F131: -91699854.72 | G131: 13056 | H131: 0 | I131: 11054.83031 | J131: 20561.009 | K131: 593734056 | Q131: 526417920 | R131: 0 | W131: 2.467584e+31 | X131: 143927063 | Y131: 2.467584e+31 | Z131: 13056 | AA131: 23344.47181 | AB131: 1.610838835e+35 | AC131: -1.487210031e+12 | AD131: 1.610838835e+35 | AF131: 1.907375274e+12 | AG131: -1.487210031e+12 | AH131: 4.201652431e+11
A132: 114 | B132: 40680 | C132: 531118080 | D132: 0 | E132: -56189383.87 | F132: -84294404.19 | G132: 13056 | H132: 0 | I132: 11182.31553 | J132: 20580.12136 | K132: 593325883.2 | Q132: 531118080 | R132: 0 | W132: 2.467584e+31 | X132: 144060849.5 | Y132: 2.467584e+31 | Z132: 13056 | AA132: 23421.90377 | AB132: 1.610838835e+35 | AC132: -1.488233143e+12 | AD132: 1.610838835e+35 | AF132: 1.920049516e+12 | AG132: -1.488233143e+12 | AH132: 4.31816373e+11
A133: 115 | B133: 41040 | C133: 535818240 | D133: 0 | E133: -52140743.09 | F133: -76882356.35 | G133: 13056 | H133: 0 | I133: 11310.19587 | J133: 20597.6587 | K133: 592964301.2 | Q133: 535818240 | R133: 0 | W133: 2.467584e+31 | X133: 144183610.9 | Y133: 2.467584e+31 | Z133: 13056 | AA133: 23498.59729 | AB133: 1.610838835e+35 | AC133: -1.489140648e+12 | AD133: 1.610838835e+35 | AF133: 1.932644261e+12 | AG133: -1.489140648e+12 | AH133: 4.435036128e+11
A134: 116 | B134: 41400 | C134: 540518400 | D134: 0 | E134: -48046000.12 | F134: -69464280.29 | G134: 13056 | H134: 0 | I134: 11438.43222 | J134: 20613.60968 | K134: 592649423.6 | Q134: 540518400 | R134: 0 | W134: 2.467584e+31 | X134: 144295267.8 | Y134: 2.467584e+31 | Z134: 13056 | AA134: 23574.53363 | AB134: 1.610838835e+35 | AC134: -1.489931836e+12 | AD134: 1.610838835e+35 | AF134: 1.945155226e+12 | AG134: -1.489931836e+12 | AH134: 4.552233894e+11
A135: 117 | B135: 41760 | C135: 545218560 | D135: 0 | E135: -43905033.91 | F135: -62040748.96 | G135: 13056 | H135: 0 | I135: 11566.98504 | J135: 20627.96419 | K135: 592381349.7 | Q135: 545218560 | R135: 0 | W135: 2.467584e+31 | X135: 144395749.3 | Y135: 2.467584e+31 | Z135: 13056 | AA135: 23649.69449 | AB135: 1.610838835e+35 | AC135: -1.490606084e+12 | AD135: 1.610838835e+35 | AF135: 1.957578173e+12 | AG135: -1.490606084e+12 | AH135: 4.669720885e+11
A136: 118 | B136: 42120 | C136: 549918720 | D136: 0 | E136: -39717737.71 | F136: -54612338.73 | G136: 13056 | H136: 0 | I136: 11695.81438 | J136: 20640.71331 | K136: 592160164 | Q136: 549918720 | R136: 0 | W136: 2.467584e+31 | X136: 144484993.2 | Y136: 2.467584e+31 | Z136: 13056 | AA136: 23724.06205 | AB136: 1.610838835e+35 | AC136: -1.491162861e+12 | AD136: 1.610838835e+35 | AF136: 1.96990892e+12 | AG136: -1.491162861e+12 | AH136: 4.787460597e+11
A137: 119 | B137: 42480 | C137: 554618880 | D137: 0 | E137: -35484019.21 | F137: -47179628.95 | G137: 13056 | H137: 0 | I137: 11824.87996 | J137: 20651.84941 | K137: 591985936.5 | Q137: 554618880 | R137: 0 | W137: 2.467584e+31 | X137: 144562945.9 | Y137: 2.467584e+31 | Z137: 13056 | AA137: 23797.619 | AB137: 1.610838835e+35 | AC137: -1.491601725e+12 | AD137: 1.610838835e+35 | AF137: 1.982143346e+12 | AG137: -1.491601725e+12 | AH137: 4.90541621e+11
A138: 120 | B138: 42840 | C138: 559319040 | D138: 0 | E138: -31203800.66 | F138: -39743201.49 | G138: 13056 | H138: 0 | I138: 11954.1412 | J138: 20661.3661 | K138: 591858722.5 | Q138: 559319040 | R138: 0 | W138: 2.467584e+31 | X138: 144629562.7 | Y138: 2.467584e+31 | Z138: 13056 | AA138: 23870.34857 | AB138: 1.610838835e+35 | AC138: -1.491922329e+12 | AD138: 1.610838835e+35 | AF138: 1.994277394e+12 | AG138: -1.491922329e+12 | AH138: 5.023550642e+11
A139: 121 | B139: 43200 | C139: 564019200 | D139: 0 | E139: -26877018.96 | F139: -32303640.3 | G139: 13056 | H139: 0 | I139: 12083.55729 | J139: 20669.25827 | K139: 591778562.3 | Q139: 564019200 | R139: 0 | W139: 2.467584e+31 | X139: 144684807.9 | Y139: 2.467584e+31 | Z139: 13056 | AA139: 23942.23453 | AB139: 1.610838835e+35 | AC139: -1.49212442e+12 | AD139: 1.610838835e+35 | AF139: 2.00630708e+12 | AG139: -1.49212442e+12 | AH139: 5.141826597e+11
A140: 122 | B140: 43560 | C140: 568719360 | D140: 0 | E140: -22503625.75 | F140: -24861530.95 | G140: 13056 | H140: 0 | I140: 12213.08725 | J140: 20675.52208 | K140: 591745481.3 | Q140: 568719360 | R140: 0 | W140: 2.467584e+31 | X140: 144728654.6 | Y140: 2.467584e+31 | Z140: 13056 | AA140: 24013.2612 | AB140: 1.610838835e+35 | AC140: -1.492207836e+12 | AD140: 1.610838835e+35 | AF140: 2.018228498e+12 | AG140: -1.492207836e+12 | AH140: 5.260206619e+11
A141: 123 | B141: 43920 | C141: 573419520 | D141: 0 | E141: -18083587.41 | F141: -17417460.12 | G141: 13056 | H141: 0 | I141: 12342.68998 | J141: 20680.15501 | K141: 591759490 | Q141: 573419520 | R141: 0 | W141: 2.467584e+31 | X141: 144761085.1 | Y141: 2.467584e+31 | Z141: 13056 | AA141: 24083.41353 | AB141: 1.610838835e+35 | AC141: -1.492172511e+12 | AD141: 1.610838835e+35 | AF141: 2.030037825e+12 | AG141: -1.492172511e+12 | AH141: 5.378653141e+11
A142: 124 | B142: 44280 | C142: 578119680 | D142: 0 | E142: -13616885.17 | F142: -9972015.2 | G142: 13056 | H142: 0 | I142: 12472.3243 | J142: 20683.15581 | K142: 591820584 | Q142: 578119680 | R142: 0 | W142: 2.467584e+31 | X142: 144782090.7 | Y142: 2.467584e+31 | Z142: 13056 | AA142: 24152.67703 | AB142: 1.610838835e+35 | AC142: -1.492018473e+12 | AD142: 1.610838835e+35 | AF142: 2.041731327e+12 | AG142: -1.492018473e+12 | AH142: 5.49712854e+11
A143: 125 | B143: 44640 | C143: 582819840 | D143: 0 | E143: -9103515.067 | F143: -2525783.788 | G143: 13056 | H143: 0 | I143: 12601.94904 | J143: 20684.52454 | K143: 591928743.9 | Q143: 582819840 | R143: 0 | W143: 2.467584e+31 | X143: 144791671.8 | Y143: 2.467584e+31 | Z143: 13056 | AA143: 24221.03786 | AB143: 1.610838835e+35 | AC143: -1.491745845e+12 | AD143: 1.610838835e+35 | AF143: 2.053305363e+12 | AG143: -1.491745845e+12 | AH143: 5.615595185e+11
A144: 126 | B144: 45000 | C144: 587520000 | D144: 0 | E144: -4543487.947 | F144: 4920646.778 | G144: 13056 | H144: 0 | I144: 12731.52309 | J144: 20684.26256 | K144: 592083935.4 | Q144: 587520000 | R144: 0 | W144: 2.467584e+31 | X144: 144789837.9 | Y144: 2.467584e+31 | Z144: 13056 | AA144: 24288.48282 | AB144: 1.610838835e+35 | AC144: -1.491354842e+12 | AD144: 1.610838835e+35 | AF144: 2.064756392e+12 | AG144: -1.491354842e+12 | AH144: 5.734015497e+11
A145: 127 | B145: 45360 | C145: 592220160 | D145: 0 | E145: 63170.54833 | F145: 12366689.88 | G145: 13056 | H145: 0 | I145: 12861.00542 | J145: 20682.37251 | K145: 592286109.2 | Q145: 592220160 | R145: 0 | W145: 2.467584e+31 | X145: 144776607.5 | Y145: 2.467584e+31 | Z145: 13056 | AA145: 24354.99934 | AB145: 1.610838835e+35 | AC145: -1.490845776e+12 | AD145: 1.610838835e+35 | AF145: 2.076080975e+12 | AG145: -1.490845776e+12 | AH145: 5.852351991e+11
A146: 128 | B146: 45720 | C146: 596920320 | D146: 0 | E146: 4716420.046 | F146: 19811760.08 | G146: 13056 | H146: 0 | I146: 12990.35519 | J146: 20678.85831 | K146: 592535201.5 | Q146: 596920320 | R146: 0 | W146: 2.467584e+31 | X146: 144752008.2 | Y146: 2.467584e+31 | Z146: 13056 | AA146: 24420.57553 | AB146: 1.610838835e+35 | AC146: -1.490219048e+12 | AD146: 1.610838835e+35 | AF146: 2.087275782e+12 | AG146: -1.490219048e+12 | AH146: 5.970567338e+11
A147: 129 | B147: 46080 | C147: 601620480 | D147: 0 | E147: 9416205.505 | F147: 27255273.58 | G147: 13056 | H147: 0 | I147: 13119.53178 | J147: 20673.72518 | K147: 592831133.3 | Q147: =C147 -> 601620480 | R147: 0 | W147: 2.467584e+31 | X147: 144716076.3 | Y147: 2.467584e+31 | Z147: 13056 | AA147: 24485.20017 | AB147: 1.610838835e+35 | AC147: -1.489475155e+12 | AD147: 1.610838835e+35 | AF147: 2.098337595e+12 | AG147: -1.489475155e+12 | AH147: 6.088624407e+11
A148: 130 | B148: 46440 | C148: 606320640 | D148: 0 | E148: 14162457.31 | F148: 34696648.71 | G148: 13056 | H148: 0 | I148: 13248.49484 | J148: 20666.97959 | K148: 593173811.6 | Q148: 606320640 | R148: 0 | W148: =$I$4*G148+$J$4*I148 -> 2.467584e+31 | X148: =$I$4*H148+$J$4*J148 -> 144668857.1 | Y148: =SQRT(W148^2+X148^2) -> 2.467584e+31 | Z148: =SQRT(G148^2+H148^2) -> 13056 | AA148: =SQRT(I148^2+J148^2) -> 24548.86272 | AB148: =($I$4*Z148^2+$J$4*AA148^2)/2 -> 1.610838835e+35 | AC148: =-0.0000000000667428*$I$4*$J$4/K148 -> -1.48861468e+12 | AD148: =AB148+AC148 -> 1.610838835e+35 | AF148: =0.5*$J$4*AA148^2 -> 2.109263313e+12 | AG148: =AC148 -> -1.48861468e+12 | AH148: =AF148+AG148 -> 6.206486323e+11
A149: 131 | B149: 46800 | C149: 611020800 | D149: 0 | E149: 18955091.36 | F149: 42135306.31 | G149: 13056 | H149: 0 | I149: 13377.20434 | J149: 20658.62923 | K149: 593563128.4 | Q149: 611020800 | R149: 0 | W149: 2.467584e+31 | X149: 144610404.6 | Y149: 2.467584e+31 | Z149: 13056 | AA149: 24611.55334 | AB149: 1.610838835e+35 | AC149: -1.487638301e+12 | AD149: 1.610838835e+35 | AF149: 2.120049953e+12 | AG149: -1.487638301e+12 | AH149: 6.324116513e+11
A150: 132 | B150: 47160 | C150: 615720960 | D150: 0 | E150: 23794009.25 | F150: 49570670.25 | G150: 13056 | H150: 0 | I150: 13505.62066 | J150: 20648.68306 | K150: 593998961.6 | Q150: 615720960 | R150: 0 | W150: 2.467584e+31 | X150: 144540781.4 | Y150: 2.467584e+31 | Z150: 13056 | AA150: 24673.26289 | AB150: 1.610838835e+35 | AC150: -1.486546781e+12 | AD150: 1.610838835e+35 | AF150: 2.130694656e+12 | AG150: -1.486546781e+12 | AH150: 6.441478752e+11
A151: 133 | B151: 47520 | C151: 620421120 | D151: 0 | E151: 28679098.35 | F151: 57002167.83 | G151: 13056 | H151: 0 | I151: 13633.70459 | J151: 20637.15122 | K151: 594481174.9 | Q151: 620421120 | R151: 0 | W151: 2.467584e+31 | X151: 144460058.6 | Y151: 2.467584e+31 | Z151: 13056 | AA151: 24733.98293 | AB151: 1.610838835e+35 | AC151: -1.485340968e+12 | AD151: 1.610838835e+35 | AF151: 2.14119469e+12 | AG151: -1.485340968e+12 | AH151: 6.558537219e+11
A152: 134 | B152: 47880 | C152: 625121280 | D152: 0 | E152: 33610232.02 | F152: 64429230.2 | G152: 13056 | H152: 0 | I152: 13761.41743 | J152: 20624.04504 | K152: 595009618.1 | Q152: 625121280 | R152: 0 | W152: 2.467584e+31 | X152: 144368315.3 | Y152: 2.467584e+31 | Z152: 13056 | AA152: 24793.70573 | AB152: 1.610838835e+35 | AC152: -1.484021799e+12 | AD152: 1.610838835e+35 | AF152: 2.151547453e+12 | AG152: -1.484021799e+12 | AH152: 6.675256535e+11
A153: 135 | B153: 48240 | C153: 629821440 | D153: 0 | E153: 38587269.78 | F153: 71851292.83 | G153: 13056 | H153: 0 | I153: 13888.721 | J153: 20609.37702 | K153: 595584127 | Q153: 629821440 | R153: 0 | W153: 2.467584e+31 | X153: 144265639.1 | Y153: 2.467584e+31 | Z153: 13056 | AA153: 24852.42427 | AB153: 1.610838835e+35 | AC153: -1.482590291e+12 | AD153: 1.610838835e+35 | AF153: 2.161750472e+12 | AG153: -1.482590291e+12 | AH153: 6.791601811e+11
A154: 136 | B154: 48600 | C154: 634521600 | D154: 0 | E154: 43610057.51 | F154: 79267795.86 | G154: 13056 | H154: 0 | I154: 14015.5777 | J154: 20593.16076 | K154: 596204524.1 | Q154: 634521600 | R154: 0 | W154: 2.467584e+31 | X154: 144152125.3 | Y154: 2.467584e+31 | Z154: 13056 | AA154: 24910.13225 | AB154: 1.610838835e+35 | AC154: -1.481047541e+12 | AD154: 1.610838835e+35 | AF154: 2.17180141e+12 | AG154: -1.481047541e+12 | AH154: 6.907538692e+11
A155: 137 | B155: 48960 | C155: 639221760 | D155: 0 | E155: 48678427.66 | F155: 86678184.55 | G155: 13056 | H155: 0 | I155: 14141.95059 | J155: 20575.411 | K155: 596870618.3 | Q155: 639221760 | R155: 0 | W155: 2.467584e+31 | X155: 144027877 | Y155: 2.467584e+31 | Z155: 13056 | AA155: 24966.82407 | AB155: 1.610838835e+35 | AC155: -1.479394725e+12 | AD155: 1.610838835e+35 | AF155: 2.181698064e+12 | AG155: -1.479394725e+12 | AH155: 7.023033398e+11
A156: 138 | B156: 49320 | C156: 643921920 | D156: 0 | E156: 53792199.52 | F156: 94081909.65 | G156: 13056 | H156: 0 | I156: 14267.80336 | J156: 20556.14351 | K156: 597582205.8 | Q156: 643921920 | R156: 0 | W156: 2.467584e+31 | X156: 143893004.6 | Y156: 2.467584e+31 | Z156: 13056 | AA156: 25022.49486 | AB156: 1.610838835e+35 | AC156: -1.477633094e+12 | AD156: 1.610838835e+35 | AF156: 2.191438371e+12 | AG156: -1.477633094e+12 | AH156: 7.138052765e+11
A157: 139 | B157: 49680 | C157: 648622080 | D157: 0 | E157: 58951179.4 | F157: 101478427.8 | G157: 13056 | H157: 0 | I157: 14393.10045 | J157: 20535.37513 | K157: 598339069.7 | Q157: 648622080 | R157: 0 | W157: 2.467584e+31 | X157: 143747625.9 | Y157: 2.467584e+31 | Z157: 13056 | AA157: 25077.14043 | AB157: 1.610838835e+35 | AC157: -1.475763975e+12 | AD157: 1.610838835e+35 | AF157: 2.201020403e+12 | AG157: -1.475763975e+12 | AH157: 7.252564282e+11
A158: 140 | B158: 50040 | C158: 653322240 | D158: 0 | E158: 64155160.98 | F158: 108867201.8 | G158: 13056 | H158: 0 | I158: 14517.80704 | J158: 20513.12368 | K158: 599140980.6 | Q158: 653322240 | R158: 0 | W158: 2.467584e+31 | X158: 143591865.7 | Y158: 2.467584e+31 | Z158: 13056 | AA158: 25130.75733 | AB158: 1.610838835e+35 | AC158: -1.473788762e+12 | AD158: 1.610838835e+35 | AF158: 2.210442375e+12 | AG158: -1.473788762e+12 | AH158: 7.366536126e+11
A159: 141 | B159: 50400 | C159: 658022400 | D159: 0 | E159: 69403925.52 | F159: 116247701.1 | G159: 13056 | H159: 0 | I159: 14641.88909 | J159: 20489.40793 | K159: 599987697 | Q159: 658022400 | R159: 0 | W159: 2.467584e+31 | X159: 143425855.5 | Y159: 2.467584e+31 | Z159: 13056 | AA159: 25183.34278 | AB159: 1.610838835e+35 | AC159: -1.471708917e+12 | AD159: 1.610838835e+35 | AF159: 2.219702637e+12 | AG159: -1.471708917e+12 | AH159: 7.4799372e+11
A160: 142 | B160: 50760 | C160: 662722560 | D160: 0 | E160: 74697242.19 | F160: 123619402.1 | G160: 13056 | H160: 0 | I160: 14765.31342 | J160: 20464.2476 | K160: 600878965.3 | Q160: 662722560 | R160: 0 | W160: 2.467584e+31 | X160: 143249733.2 | Y160: 2.467584e+31 | Z160: 13056 | AA160: 25234.89469 | AB160: 1.610838835e+35 | AC160: -1.469525969e+12 | AD160: 1.610838835e+35 | AF160: 2.228799686e+12 | AG160: -1.469525969e+12 | AH160: 7.592737161e+11
A161: 143 | B161: 51120 | C161: 667422720 | D161: 0 | E161: 80034868.37 | F161: 130981788.5 | G161: 13056 | H161: 0 | I161: 14888.04768 | J161: 20437.66327 | K161: 601814520.6 | Q161: 667422720 | R161: 0 | W161: 2.467584e+31 | X161: 143063642.9 | Y161: 2.467584e+31 | Z161: 13056 | AA161: 25285.41167 | AB161: 1.610838835e+35 | AC161: -1.467241507e+12 | AD161: 1.610838835e+35 | AF161: 2.237732152e+12 | AG161: -1.467241507e+12 | AH161: 7.704906453e+11
A162: 144 | B162: 51480 | C162: 672122880 | D162: 0 | E162: 85416549.93 | F162: 138334351.4 | G162: 13056 | H162: 0 | I162: 15010.06041 | J162: 20409.67637 | K162: 602794086.3 | Q162: 672122880 | R162: 0 | W162: 2.467584e+31 | X162: 142867734.6 | Y162: 2.467584e+31 | Z162: 13056 | AA162: 25334.893 | AB162: 1.610838835e+35 | AC162: -1.464857178e+12 | AD162: 1.610838835e+35 | AF162: 2.246498811e+12 | AG162: -1.464857178e+12 | AH162: 7.816416332e+11
A163: 145 | B163: 51840 | C163: 676823040 | D163: 0 | E163: 90842021.62 | F163: 145676589.8 | G163: 13056 | H163: 0 | I163: 15131.3211 | J163: 20380.30913 | K163: 603817375.3 | Q163: 676823040 | R163: 0 | W163: 2.467584e+31 | X163: 142662163.9 | Y163: 2.467584e+31 | Z163: 13056 | AA163: 25383.3386 | AB163: 1.610838835e+35 | AC163: -1.462374685e+12 | AD163: 1.610838835e+35 | AF163: 2.255098574e+12 | AG163: -1.462374685e+12 | AH163: 7.927238895e+11
A164: 146 | B164: 52200 | C164: 681523200 | D164: 0 | E164: 96311007.32 | F164: 153008011.1 | G164: 13056 | H164: 0 | I164: 15251.80014 | J164: 20349.58454 | K164: 604884089.6 | Q164: 681523200 | R164: 0 | W164: 2.467584e+31 | X164: 142447091.8 | Y164: 2.467584e+31 | Z164: 13056 | AA164: 25430.74907 | AB164: 1.610838835e+35 | AC164: -1.459795784e+12 | AD164: 1.610838835e+35 | AF164: 2.263530494e+12 | AG164: -1.459795784e+12 | AH164: 8.0373471e+11
A165: 147 | B165: 52560 | C165: 686223360 | D165: 0 | E165: 101823220.5 | F165: 160328130.6 | G165: 13056 | H165: 0 | I165: 15371.46892 | J165: 20317.52629 | K165: 605993921.2 | Q165: 686223360 | R165: 0 | W165: 2.467584e+31 | X165: 142222684 | Y165: 2.467584e+31 | Z165: 13056 | AA165: 25477.12564 | AB165: 1.610838835e+35 | AC165: -1.45712228e+12 | AD165: 1.610838835e+35 | AF165: 2.271793759e+12 | AG165: -1.45712228e+12 | AH165: 8.14671479e+11
A166: 148 | B166: 52920 | C166: 690923520 | D166: 0 | E166: 107378364.4 | F166: 167636472.9 | G166: 13056 | H166: 0 | I166: 15490.2998 | J166: 20284.15874 | K166: 607146552.1 | Q166: 690923520 | R166: 0 | W166: 2.467584e+31 | X166: 141989111.2 | Y166: 2.467584e+31 | Z166: 13056 | AA166: 25522.47017 | AB166: 1.610838835e+35 | AC166: -1.454356022e+12 | AD166: 1.610838835e+35 | AF166: 2.279887692e+12 | AG166: -1.454356022e+12 | AH166: 8.255316708e+11
A167: 149 | B167: 53280 | C167: 695623680 | D167: 0 | E167: 112976132.6 | F167: 174932570.8 | G167: 13056 | H167: 0 | I167: 15608.26615 | J167: 20249.50688 | K167: 608341654.7 | Q167: 695623680 | R167: 0 | W167: 2.467584e+31 | X167: 141746548.2 | Y167: 2.467584e+31 | Z167: 13056 | AA167: 25566.78512 | AB167: 1.610838835e+35 | AC167: -1.451498902e+12 | AD167: 1.610838835e+35 | AF167: 2.287811754e+12 | AG167: -1.451498902e+12 | AH167: 8.363128517e+11
A168: 150 | B168: 53640 | C168: 700323840 | D168: 0 | E168: 118616209.2 | F168: 182215966.8 | G168: 13056 | H168: 0 | I168: 15725.34236 | J168: 20213.59628 | K168: 609578892.6 | Q168: 700323840 | R168: 0 | W168: 2.467584e+31 | X168: 141495173.9 | Y168: 2.467584e+31 | Z168: 13056 | AA168: 25610.07354 | AB168: 1.610838835e+35 | AC168: -1.448552853e+12 | AD168: 1.610838835e+35 | AF168: 2.295565534e+12 | AG168: -1.448552853e+12 | AH168: 8.470126813e+11
A169: 151 | B169: 54000 | C169: 705024000 | D169: 0 | E169: 124298269.3 | F169: 189486212.2 | G169: 13056 | H169: 0 | I169: 15841.50387 | J169: 20176.45302 | K169: 610857920.4 | Q169: 705024000 | R169: 0 | W169: 2.467584e+31 | X169: 141235171.1 | Y169: 2.467584e+31 | Z169: 13056 | AA169: 25652.3391 | AB169: 1.610838835e+35 | AC169: -1.445519841e+12 | AD169: 1.610838835e+35 | AF169: 2.303148755e+12 | AG169: -1.445519841e+12 | AH169: 8.576289136e+11
A170: 152 | B170: 54360 | C170: 709724160 | D170: 0 | E170: 130021979.4 | F170: 196742868.2 | G170: 13056 | H170: 0 | I170: 15956.72714 | J170: 20138.10369 | K170: 612178384.5 | Q170: 709724160 | R170: 0 | W170: 2.467584e+31 | X170: 140966725.8 | Y170: 2.467584e+31 | Z170: 13056 | AA170: 25693.58599 | AB170: 1.610838835e+35 | AC170: -1.442401866e+12 | AD170: 1.610838835e+35 | AF170: 2.310561264e+12 | AG170: -1.442401866e+12 | AH170: 8.681593982e+11
A171: 153 | B171: 54720 | C171: 714424320 | D171: 0 | E171: 135786997.6 | F171: 203985505.4 | G171: 13056 | H171: 0 | I171: 16070.98968 | J171: 20098.57532 | K171: 613539923.2 | Q171: 714424320 | R171: 0 | W171: 2.467584e+31 | X171: 140690027.2 | Y171: 2.467584e+31 | Z171: 13056 | AA171: 25733.81898 | AB171: 1.610838835e+35 | AC171: -1.439200956e+12 | AD171: 1.610838835e+35 | AF171: 2.317803037e+12 | AG171: -1.439200956e+12 | AH171: 8.786020808e+11
A172: 154 | B172: 55080 | C172: 719124480 | D172: 0 | E172: 141592974.1 | F172: 211213704.2 | G172: 13056 | H172: 0 | I172: 16184.27009 | J172: 20057.89531 | K172: 614942167.3 | Q172: 719124480 | R172: 0 | W172: 2.467584e+31 | X172: 140405267.2 | Y172: 2.467584e+31 | Z172: 13056 | AA172: 25773.04334 | AB172: 1.610838835e+35 | AC172: -1.435919166e+12 | AD172: 1.610838835e+35 | AF172: 2.32487417e+12 | AG172: -1.435919166e+12 | AH172: 8.889550039e+11
A173: 155 | B173: 55440 | C173: 723824640 | D173: 0 | E173: 147439551.7 | F173: 218427055.1 | G173: 13056 | H173: 0 | I173: 16296.54801 | J173: 20016.09146 | K173: 616384740.6 | Q173: 723824640 | R173: 0 | W173: 2.467584e+31 | X173: 140112640.2 | Y173: 2.467584e+31 | Z173: 13056 | AA173: 25811.26487 | AB173: 1.610838835e+35 | AC173: -1.432558572e+12 | AD173: 1.610838835e+35 | AF173: 2.33177488e+12 | AG173: -1.432558572e+12 | AH173: 8.992163071e+11
A174: 156 | B174: 55800 | C174: 728524800 | D174: 0 | E174: 153326366 | F174: 225625158.6 | G174: 13056 | H174: 0 | I174: 16407.80413 | J174: 19973.19183 | K174: 617867259.7 | Q174: 728524800 | R174: 0 | W174: 2.467584e+31 | X174: 139812342.8 | Y174: 2.467584e+31 | Z174: 13056 | AA174: 25848.48986 | AB174: 1.610838835e+35 | AC174: -1.429121272e+12 | AD174: 1.610838835e+35 | AF174: 2.338505499e+12 | AG174: -1.429121272e+12 | AH174: 9.093842272e+11
A175: 157 | B175: 56160 | C175: 733224960 | D175: 0 | E175: 159253045.9 | F175: 232807625.2 | G175: 13056 | H175: 0 | I175: 16518.02025 | J175: 19929.22477 | K175: 619389335.2 | Q175: 733224960 | R175: 0 | W175: 2.467584e+31 | X175: 139504573.4 | Y175: 2.467584e+31 | Z175: 13056 | AA175: 25884.72509 | AB175: 1.610838835e+35 | AC175: -1.425609377e+12 | AD175: 1.610838835e+35 | AF175: 2.345066475e+12 | AG175: -1.425609377e+12 | AH175: 9.194570982e+11
A176: 158 | B176: 56520 | C176: 737925120 | D176: 0 | E176: 165219213.8 | F176: 239974075.8 | G176: 13056 | H176: 0 | I176: 16627.17917 | J176: 19884.21885 | K176: 620950571.4 | Q176: 737925120 | R176: 0 | W176: 2.467584e+31 | X176: 139189532 | Y176: 2.467584e+31 | Z176: 13056 | AA176: 25919.97775 | AB176: 1.610838835e+35 | AC176: -1.422025012e+12 | AD176: 1.610838835e+35 | AF176: 2.351458363e+12 | AG176: -1.422025012e+12 | AH176: 9.29433351e+11
A177: 159 | B177: 56880 | C177: 742625280 | D177: 0 | E177: 171224486.1 | F177: 247124141.5 | G177: 13056 | H177: 0 | I177: 16735.2648 | J177: 19838.20283 | K177: 622550567.1 | Q177: 742625280 | R177: 0 | W177: 2.467584e+31 | X177: 138867419.8 | Y177: 2.467584e+31 | Z177: 13056 | AA177: 25954.25552 | AB177: 1.610838835e+35 | AC177: -1.418370315e+12 | AD177: 1.610838835e+35 | AF177: 2.357681828e+12 | AG177: -1.418370315e+12 | AH177: 9.393115128e+11
A178: 160 | B178: 57240 | C178: 747325440 | D178: 0 | E178: 177268473.8 | F178: 254257464 | G178: 13056 | H178: 0 | I178: 16842.26207 | J178: 19791.20558 | K178: 624188915.9 | Q178: 747325440 | R178: 0 | W178: 2.467584e+31 | X178: 138538439 | Y178: 2.467584e+31 | Z178: 13056 | AA178: 25987.56645 | AB178: 1.610838835e+35 | AC178: -1.414647427e+12 | AD178: 1.610838835e+35 | AF178: 2.363737634e+12 | AG178: -1.414647427e+12 | AH178: 9.49090207e+11
A179: 161 | B179: 57600 | C179: 752025600 | D179: 0 | E179: 183350782.5 | F179: 261373695.3 | G179: 13056 | H179: 0 | I179: 16948.15695 | J179: 19743.25609 | K179: 625865206.5 | Q179: 752025600 | R179: 0 | W179: 2.467584e+31 | X179: 138202792.6 | Y179: 2.467584e+31 | Z179: 13056 | AA179: 26019.91901 | AB179: 1.610838835e+35 | AC179: -1.410858496e+12 | AD179: 1.610838835e+35 | AF179: 2.369626648e+12 | AG179: -1.410858496e+12 | AH179: 9.587681517e+11
A180: 162 | B180: 57960 | C180: 756725760 | D180: 0 | E180: 189471013 | F180: 268472497.7 | G180: 13056 | H180: 0 | I180: 17052.93645 | J180: 19694.38343 | K180: 627579022.9 | Q180: 756725760 | R180: 0 | W180: 2.467584e+31 | X180: 137860684 | Y180: 2.467584e+31 | Z180: 13056 | AA180: 26051.32204 | AB180: 1.610838835e+35 | AC180: -1.407005671e+12 | AD180: 1.610838835e+35 | AF180: 2.37534983e+12 | AG180: -1.407005671e+12 | AH180: 9.683441595e+11
A181: 163 | B181: 58320 | C181: 761425920 | D181: 0 | E181: 195628761.4 | F181: 275553544.1 | G181: 13056 | H181: 0 | I181: 17156.58859 | J181: 19644.61665 | K181: 629329945.5 | Q181: 761425920 | R181: 0 | W181: 2.467584e+31 | X181: 137512316.6 | Y181: 2.467584e+31 | Z181: 13056 | AA181: 26081.78474 | AB181: 1.610838835e+35 | AC181: -1.403091098e+12 | AD181: 1.610838835e+35 | AF181: 2.380908234e+12 | AG181: -1.403091098e+12 | AH181: 9.778171359e+11
A182: 164 | B182: 58680 | C182: 766126080 | D182: 0 | E182: 201823620.1 | F182: 282616517.8 | G182: 13056 | H182: 0 | I182: 17259.1024 | J182: 19593.98483 | K182: 631117550.4 | Q182: 766126080 | R182: 0 | W182: 2.467584e+31 | X182: 137157893.8 | Y182: 2.467584e+31 | Z182: 13056 | AA182: 26111.31664 | AB182: 1.610838835e+35 | AC182: -1.399116921e+12 | AD182: 1.610838835e+35 | AF182: 2.386302999e+12 | AG182: -1.399116921e+12 | AH182: 9.87186078e+11
A183: 165 | B183: 59040 | C183: 770826240 | D183: 0 | E183: 208055177.4 | F183: 289661112.8 | G183: 13056 | H183: 0 | I183: 17360.4679 | J183: 19542.51697 | K183: 632941410.6 | Q183: 770826240 | R183: 0 | W183: 2.467584e+31 | X183: 136797618.8 | Y183: 2.467584e+31 | Z183: 13056 | AA183: 26139.9276 | AB183: 1.610838835e+35 | AC183: -1.395085278e+12 | AD183: 1.610838835e+35 | AF183: 2.391535352e+12 | AG183: -1.395085278e+12 | AH183: 9.964500738e+11
A184: 166 | B184: 59400 | C184: 775526400 | D184: 0 | E184: 214323018.1 | F184: 296687033.2 | G184: 13056 | H184: 0 | I184: 17460.67608 | J184: 19490.242 | K184: 634801096 | Q184: 775526400 | R184: 0 | W184: 2.467584e+31 | X184: 136431694 | Y184: 2.467584e+31 | Z184: 13056 | AA184: 26167.62775 | AB184: 1.610838835e+35 | AC184: -1.390998298e+12 | AD184: 1.610838835e+35 | AF184: 2.396606598e+12 | AG184: -1.390998298e+12 | AH184: 1.0056083e+12
A185: 167 | B185: 59760 | C185: 780226560 | D185: 0 | E185: 220626724.3 | F185: 303693993.6 | G185: 13056 | H185: 0 | I185: 17559.71889 | J185: 19437.18874 | K185: 636696173.9 | Q185: 780226560 | R185: 0 | W185: 2.467584e+31 | X185: 136060321.2 | Y185: 2.467584e+31 | Z185: 13056 | AA185: 26194.42753 | AB185: 1.610838835e+35 | AC185: -1.386858097e+12 | AD185: 1.610838835e+35 | AF185: 2.401518117e+12 | AG185: -1.386858097e+12 | AH185: 1.01466002e+12
A186: 168 | B186: 60120 | C186: 784926720 | D186: 0 | E186: 226965875 | F186: 310681719.1 | G186: 13056 | H186: 0 | I186: 17657.58921 | J186: 19383.38586 | K186: 638626209.2 | Q186: 784926720 | R186: 0 | W186: 2.467584e+31 | X186: 135683701 | Y186: 2.467584e+31 | Z186: 13056 | AA186: 26220.33761 | AB186: 1.610838835e+35 | AC186: -1.382666779e+12 | AD186: 1.610838835e+35 | AF186: 2.406271365e+12 | AG186: -1.382666779e+12 | AH186: 1.023604585e+12
A187: 169 | B187: 60480 | C187: 789626880 | D187: 0 | E187: 233340047.1 | F187: 317649944.9 | G187: 13056 | H187: 0 | I187: 17754.28086 | J187: 19328.86185 | K187: 640590764.8 | Q187: 789626880 | R187: 0 | W187: 2.467584e+31 | X187: 135302033 | Y187: 2.467584e+31 | Z187: 13056 | AA187: 26245.36891 | AB187: 1.610838835e+35 | AC187: -1.378426435e+12 | AD187: 1.610838835e+35 | AF187: 2.410867863e+12 | AG187: -1.378426435e+12 | AH187: 1.032441428e+12
A188: 170 | B188: 60840 | C188: 794327040 | D188: 0 | E188: 239748815.2 | F188: 324598416.5 | G188: 13056 | H188: 0 | I188: 17849.78852 | J188: 19273.64501 | K188: 642589401.9 | Q188: 794327040 | R188: 0 | W188: 2.467584e+31 | X188: 134915515.1 | Y188: 2.467584e+31 | Z188: 13056 | AA188: 26269.53259 | AB188: 1.610838835e+35 | AC188: -1.374139134e+12 | AD188: 1.610838835e+35 | AF188: 2.415309198e+12 | AG188: -1.374139134e+12 | AH188: 1.041170065e+12
A189: 171 | B189: 61200 | C189: 799027200 | D189: 0 | E189: 246191752.2 | F189: 331526889.6 | G189: 13056 | H189: 0 | I189: 17944.10779 | J189: 19217.76339 | K189: 644621680.4 | Q189: 799027200 | R189: 0 | W189: 2.467584e+31 | X189: 134524343.7 | Y189: 2.467584e+31 | Z189: 13056 | AA189: 26292.83998 | AB189: 1.610838835e+35 | AC189: -1.369806928e+12 | AD189: 1.610838835e+35 | AF189: 2.419597019e+12 | AG189: -1.369806928e+12 | AH189: 1.049790091e+12
A190: 172 | B190: 61560 | C190: 803727360 | D190: 0 | E190: 252668429.7 | F190: 338435129.7 | G190: 13056 | H190: 0 | I190: 18037.23507 | J190: 19161.2448 | K190: 646687159 | Q190: 803727360 | R190: 0 | W190: 2.467584e+31 | X190: 134128713.6 | Y190: 2.467584e+31 | Z190: 13056 | AA190: 26315.30261 | AB190: 1.610838835e+35 | AC190: -1.36543185e+12 | AD190: 1.610838835e+35 | AF190: 2.42373303e+12 | AG190: -1.36543185e+12 | AH190: 1.05830118e+12
A191: 173 | B191: 61920 | C191: 808427520 | D191: 0 | E191: 259178418.1 | F191: 345322912.7 | G191: 13056 | H191: 0 | I191: 18129.16765 | J191: 19104.11676 | K191: 648785395.9 | Q191: 808427520 | R191: 0 | W191: 2.467584e+31 | X191: 133728817.3 | Y191: 2.467584e+31 | Z191: 13056 | AA191: 26336.93218 | AB191: 1.610838835e+35 | AC191: -1.361015907e+12 | AD191: 1.610838835e+35 | AF191: 2.427718988e+12 | AG191: -1.361015907e+12 | AH191: 1.066703081e+12
A192: 174 | B192: 62280 | C192: 813127680 | D192: 0 | E192: 265721286.8 | F192: 352190023.9 | G192: 13056 | H192: 0 | I192: 18219.90357 | J192: 19046.40648 | K192: 650915948.7 | Q192: 813127680 | R192: 0 | W192: 2.467584e+31 | X192: 133324845.4 | Y192: 2.467584e+31 | Z192: 13056 | AA192: 26357.74054 | AB192: 1.610838835e+35 | AC192: -1.356561083e+12 | AD192: 1.610838835e+35 | AF192: 2.431556702e+12 | AG192: -1.356561083e+12 | AH192: 1.074995619e+12
A193: 175 | B193: 62640 | C193: 817827840 | D193: 0 | E193: 272296604.9 | F193: 359036258.7 | G193: 13056 | H193: 0 | I193: 18309.4417 | J193: 18988.14088 | K193: 653078374.7 | Q193: 817827840 | R193: 0 | W193: 2.467584e+31 | X193: 132916986.1 | Y193: 2.467584e+31 | Z193: 13056 | AA193: 26377.73966 | AB193: 1.610838835e+35 | AC193: -1.352069335e+12 | AD193: 1.610838835e+35 | AF193: 2.435248023e+12 | AG193: -1.352069335e+12 | AH193: 1.083178688e+12
A194: 176 | B194: 63000 | C194: 822528000 | D194: 0 | E194: 278903941.1 | F194: 365861421.9 | G194: 13056 | H194: 0 | I194: 18397.78165 | J194: 18929.34649 | K194: 655272231.6 | Q194: 822528000 | R194: 0 | W194: 2.467584e+31 | X194: 132505425.4 | Y194: 2.467584e+31 | Z194: 13056 | AA194: 26396.94164 | AB194: 1.610838835e+35 | AC194: -1.347542596e+12 | AD194: 1.610838835e+35 | AF194: 2.438794848e+12 | AG194: -1.347542596e+12 | AH194: 1.091252252e+12
A195: 177 | B195: 63360 | C195: 827228160 | D195: 0 | E195: 285542864 | F195: 372665327.9 | G195: 13056 | H195: 0 | I195: 18484.92375 | J195: 18870.0495 | K195: 657497077.2 | Q195: 827228160 | R195: 0 | W195: 2.467584e+31 | X195: 132090346.5 | Y195: 2.467584e+31 | Z195: 13056 | AA195: 26415.35868 | AB195: 1.610838835e+35 | AC195: -1.342982767e+12 | AD195: 1.610838835e+35 | AF195: 2.44219911e+12 | AG195: -1.342982767e+12 | AH195: 1.099216343e+12
A196: 178 | B196: 63720 | C196: 831928320 | D196: 0 | E196: 292212942.6 | F196: 379447800.3 | G196: 13056 | H196: 0 | I196: 18570.86905 | J196: 18810.27574 | K196: 659752470.1 | Q196: 831928320 | R196: 0 | W196: 2.467584e+31 | X196: 131671930.2 | Y196: 2.467584e+31 | Z196: 13056 | AA196: 26433.00306 | AB196: 1.610838835e+35 | AC196: -1.338391721e+12 | AD196: 1.610838835e+35 | AF196: 2.445462777e+12 | AG196: -1.338391721e+12 | AH196: 1.107071056e+12
A197: 179 | B197: 64080 | C197: 836628480 | D197: 0 | E197: 298913746.3 | F197: 386208672.2 | G197: 13056 | H197: 0 | I197: 18655.61929 | J197: 18750.0506 | K197: 662037969.7 | Q197: 836628480 | R197: 0 | W197: 2.467584e+31 | X197: 131250354.2 | Y197: 2.467584e+31 | Z197: 13056 | AA197: 26449.88712 | AB197: 1.610838835e+35 | AC197: -1.333771301e+12 | AD197: 1.610838835e+35 | AF197: 2.448587851e+12 | AG197: -1.333771301e+12 | AH197: 1.11481655e+12
A198: 180 | B198: 64440 | C198: 841328640 | D198: 0 | E198: 305644845.3 | F198: 392947785.6 | G198: 13056 | H198: 0 | I198: 18739.17687 | J198: 18689.39911 | K198: 664353136.6 | Q198: 841328640 | R198: 0 | W198: 2.467584e+31 | X198: 130825793.7 | Y198: 2.467584e+31 | Z198: 13056 | AA198: 26466.02329 | AB198: 1.610838835e+35 | AC198: -1.329123316e+12 | AD198: 1.610838835e+35 | AF198: 2.451576361e+12 | AG198: -1.329123316e+12 | AH198: 1.122453044e+12
A199: 181 | B199: 64800 | C199: 846028800 | D199: 0 | E199: 312405810.9 | F199: 399664991.4 | G199: 13056 | H199: 0 | I199: 18821.54481 | J199: 18628.34583 | K199: 666697532.5 | Q199: 846028800 | R199: 0 | W199: 2.467584e+31 | X199: 130398420.8 | Y199: 2.467584e+31 | Z199: 13056 | AA199: 26481.424 | AB199: 1.610838835e+35 | AC199: -1.324449546e+12 | AD199: 1.610838835e+35 | AF199: 2.454430361e+12 | AG199: -1.324449546e+12 | AH199: 1.129980815e+12
A200: 182 | B200: 65160 | C200: 850728960 | D200: 0 | E200: 319196215.3 | F200: 406360149.3 | G200: 13056 | H200: 0 | I200: 18902.72674 | J200: 18566.91492 | K200: 669070721 | Q200: 850728960 | R200: 0 | W200: 2.467584e+31 | X200: 129968404.5 | Y200: 2.467584e+31 | Z200: 13056 | AA200: 26496.10175 | AB200: 1.610838835e+35 | AC200: -1.319751734e+12 | AD200: 1.610838835e+35 | AF200: 2.457151927e+12 | AG200: -1.319751734e+12 | AH200: 1.137400194e+12
A201: 183 | B201: 65520 | C201: 855429120 | D201: 0 | E201: 326015632.3 | F201: 413033127.7 | G201: 13056 | H201: 0 | I201: 18982.72687 | J201: 18505.13009 | K201: 671472267.1 | Q201: 855429120 | R201: 0 | W201: 2.467584e+31 | X201: 129535910.7 | Y201: 2.467584e+31 | Z201: 13056 | AA201: 26510.06902 | AB201: 1.610838835e+35 | AC201: -1.315031591e+12 | AD201: 1.610838835e+35 | AF201: 2.459743157e+12 | AG201: -1.315031591e+12 | AH201: 1.144711566e+12
A202: 184 | B202: 65880 | C202: 860129280 | D202: 0 | E202: 332863637.4 | F202: 419683803.3 | G202: 13056 | H202: 0 | I202: 19061.54999 | J202: 18443.01459 | K202: 673901738.1 | Q202: 860129280 | R202: 0 | W202: 2.467584e+31 | X202: 129101102.1 | Y202: 2.467584e+31 | Z202: 13056 | AA202: 26523.33831 | AB202: 1.610838835e+35 | AC202: -1.310290795e+12 | AD202: 1.610838835e+35 | AF202: 2.462206163e+12 | AG202: -1.310290795e+12 | AH202: 1.151915368e+12
A203: 185 | B203: 66240 | C203: 864829440 | D203: 0 | E203: 339739807.7 | F203: 426312061.2 | G203: 13056 | H203: 0 | I203: 19139.20139 | J203: 18380.59121 | K203: 676358703.3 | Q203: 864829440 | R203: 0 | W203: 2.467584e+31 | X203: 128664138.4 | Y203: 2.467584e+31 | Z203: 13056 | AA203: 26535.92212 | AB203: 1.610838835e+35 | AC203: -1.305530985e+12 | AD203: 1.610838835e+35 | AF203: 2.46454307e+12 | AG203: -1.305530985e+12 | AH203: 1.159012085e+12
... 1817 more rows

Sheet DELTAV
B2: DIAGRAMMA EQUAZIONE DI TSIOLKOVSKY
A9: mf | B9: m0/mf | C9: ΔV/Ve
A10: 99 | B10: =100/A10 -> 1.01010101 | C10: =LN(B10) -> 0.01005033585
A11: 97 | B11: 1.030927835 | C11: 0.03045920748
A12: 95 | B12: =100/A12 -> 1.052631579 | C12: =LN(B12) -> 0.05129329439
A13: 90 | B13: 1.111111111 | C13: 0.1053605157
A14: 85 | B14: 1.176470588 | C14: 0.1625189295
A15: 80 | B15: 1.25 | C15: 0.2231435513
A16: 75 | B16: 1.333333333 | C16: 0.2876820725
A17: 70 | B17: 1.428571429 | C17: 0.3566749439
A18: 65 | B18: 1.538461538 | C18: 0.4307829161
A19: 60 | B19: 1.666666667 | C19: 0.5108256238
A20: 55 | B20: 1.818181818 | C20: 0.5978370008
A21: 50 | B21: 2 | C21: 0.6931471806
A22: 45 | B22: 2.222222222 | C22: 0.7985076962
A23: 40 | B23: 2.5 | C23: 0.9162907319
A24: 35 | B24: 2.857142857 | C24: 1.049822124
A25: 30 | B25: 3.333333333 | C25: 1.203972804
A26: 25 | B26: 4 | C26: 1.386294361
A27: 20 | B27: 5 | C27: 1.609437912
A28: 15 | B28: 6.666666667 | C28: 1.897119985
A29: 10 | B29: 10 | C29: 2.302585093

Sheet MESSA IN ORBITA SATELLITE
C2: MESSA IN ORBITA DI UN SATELLITE SU DI UN'ORBITA CIRCOLARE BASSA TERRESTRE
C3: La forza centripeta eguaglia l'attrazione gravitazionale
I6: DATI
I7: k | J7: 6.67428e-11 | K7: m^3/(s^2*kg) | L7: costante di gravitazione universale
I8: M | J8: =5.9726E+24 -> 5.9726e+24 | K8: kg | L8: massa della Terra
I9: h | J9: 50000 | K9: m | L9: distanza satellite dalla superficie terrestre
I10: r | J10: =12713000/2 -> 6356500 | K10: m | L10: raggio terrestre
I12: CALCOLI
I13: d | J13: =J9+J10 -> 6406500 | K13: m | L13: distanza del satellite dal centro della Terra
I14: v | J14: =SQRT(J7*J8/J13) -> 7888.120037 | K14: m/s | L14: velocità satellite sull'orbita ricolare
